{"text_format":"1","workbook":"xlsx","n_sheets":6,"sheets":["SI_SmartHandles","SI_Zylinder","Comments","CommentsZyl","Bilder","Bilder_SI_Zylinder"],"not_rendered":{"charts":0,"images":35,"macros":1,"external_links":1,"defined_names":50,"comments":2,"pivot_tables":0},"unopened":[],"bounds":{"document_bytes":16777216,"sheet_cells":100000,"rows_first":2000,"rows_last":500,"rows_between":2000,"halvings":0,"cell_chars":16384,"cell_head_chars":4096},"cells_cut":0,"cells_raw":0,"read":"whole","date_system":"1900"}

{"sheet":"SI_SmartHandles","index":0,"n_rows":617,"n_cols":19,"rows_kept":617,"cut":false,"hidden":false,"merged":[[30,8,30,13],[27,3,27,4],[28,3,28,4],[29,3,29,4],[27,1,27,2],[28,1,28,2],[29,1,29,2],[2,8,2,9],[1,7,1,10],[7,3,7,4],[12,6,12,7],[3,7,3,10],[14,6,14,9],[6,1,6,2],[27,8,27,13],[28,8,28,13],[29,8,29,13],[14,1,14,2],[12,4,12,5],[14,4,14,5],[5,13,5,14],[12,11,12,13],[5,0,5,1],[5,2,5,4]]}
[]
["SmartIntego -",null,null,null,null,null,null,"Sprache / language / langue / lingua / taal / sprog"]
[{"$f":"HLOOKUP($I$3,A118:F139,22,0)","v":"Ordering Guide Digital SmartHandle"},null,null,null,null,null,null,null,"English"]
[null,null,null,null,null,null,null,{"$f":"HLOOKUP($I$3,A118:F150,33,0)","v":"*** Please enable macros ***"}]
[null,null,null,null,null,null,null,null,null,null,null,null,null,null,"Version 2016.01"]
[{"$f":"HLOOKUP($I$3,A118:F140,23,0)","v":"Europrofile / Swiss Round"},null,{"$f":"HLOOKUP($I$3,A118:F167,50,0)","v":"Scandinavian Oval"},null,null,null,null,{"$f":"HLOOKUP($I$3,A118:F141,24,0)","v":"select handle variant"},null,null,null,null,null,{"$f":"HYPERLINK(HLOOKUP($I$3,A118:F168,51,0),HLOOKUP($I$3,A118:F149,32,0))","v":"Download of the ordering guide"}]
[{"$f":"I3","v":"English"},null,null,null,null,null,null,"A.",null,null,null,null,null,null,{"$f":"HLOOKUP($I$3,A118:F151,34,0)","v":"about the product:"}]
[null,null,null,null,null,null,null,null,null,null,null,null,null,null,{"$f":"HYPERLINK(HLOOKUP($I$3,A118:F157,35,0),HLOOKUP($I$3,A118:F157,36,0))","v":"Digital SmartHandle SI"}]
[null,null,null,null,null,null,null,null,null,null,null,null,null,null,{"$f":"HYPERLINK(HLOOKUP($I$3,A118:F157,37,0),HLOOKUP($I$3,A118:F157,38,0))","v":"Product Catalogue SmartIntego"}]
[null,null,null,null,null,null,null,null,null,null,null,null,null,null,{"$f":"HYPERLINK(HLOOKUP($I$3,A118:F157,39,0),HLOOKUP($I$3,A118:F157,40,0))","v":"Brochure SmartIntego"}]
[]
[]
[{"$f":"HLOOKUP($I$3,A118:F139,17,0)","v":"Customer No."},null,null,null,{"$f":"HLOOKUP($I$3,A118:F139,19,0)","v":"Project No."},null,null,null,null,null,null,{"$f":"HLOOKUP($I$3,A118:F139,21,0)","v":"Attachment to Order No."}]
[]
[{"$f":"HLOOKUP($I$3,A118:F139,18,0)","v":"Customer Name"},null,null,null,{"$f":"HLOOKUP($I$3,A118:F139,20,0)","v":"Project Name"}]
[]
[{"$f":"HLOOKUP(I3,A118:F139,2,0)","v":"Quantity"},{"$f":"HLOOKUP($I$3,A118:F139,3,0)","v":"Lock Type"},{"$f":"HLOOKUP($I$3,A118:F139,4,0)","v":"Lock Code"},{"$f":"HLOOKUP($I$3,A118:F139,5,0)","v":"Door Thickness"},{"$f":"HLOOKUP($I$3,A118:F139,6,0)","v":"Spindle Square"},{"$f":"HLOOKUP($I$3,A118:F139,7,0)","v":"Fixing / Back Plate Width"},{"$f":"HLOOKUP($I$3,A118:F139,8,0)","v":"Centre Distance"},{"$f":"HLOOKUP($I$3,A118:F139,9,0)","v":"Version"},{"$f":"HLOOKUP($I$3,A118:F139,10,0)","v":"Handle Variants Outside"},{"$f":"HLOOKUP($I$3,A118:F139,11,0)","v":"Handle Variants Inside"},{"$f":"HLOOKUP($I$3,A118:F139,12,0)","v":"Surface Finish"},{"$f":"HLOOKUP($I$3,A118:F139,13,0)","v":"Reading Technology"},{"$f":"HLOOKUP($I$3,A118:F139,15,0)","v":"Options"},{"$f":"HLOOKUP($I$3,A118:F139,16,0)","v":"Complete Part Number"},{"$f":"HLOOKUP($I$3,A118:F148,31,0)","v":"part numer correct?"}]
[null,null,{"$f":"IF(ISERROR(VLOOKUP(B18,$A$89:$C$94,3,FALSE)),\"\",VLOOKUP(B18,$A$89:$C$94,3,FALSE))","v":""},null,null,null,null,null,null,null,null,null,null,{"$f":"C18&D18&E18&F18&G18&H18&I18&J18&K18&L18&M18","v":""},{"$f":"IF(AND(A18<>\"\",B18<>\"\",C18<>\"\",D18<>\"\",E18<>\"\",F18<>\"\",G18<>\"\",H18<>\"\",I18<>\"\",J18<>\"\",K18<>\"\",L18<>\"\"),$B$171,$A$171)","v":"Î"}]
[null,null,{"$f":"IF(ISERROR(VLOOKUP(B19,$A$89:$C$94,3,FALSE)),\"\",VLOOKUP(B19,$A$89:$C$94,3,FALSE))","v":""},null,null,null,null,null,null,null,null,null,null,"",{"$f":"IF(AND(B19<>\"\",C19<>\"\",D19<>\"\",E19<>\"\",F19<>\"\",G19<>\"\",H19<>\"\",I19<>\"\",J19<>\"\",K19<>\"\",L19<>\"\"),$B$171,$A$171)","v":"Î"}]
[null,null,"",null,null,null,null,null,null,null,null,null,null,"","Î"]
[null,null,"",null,null,null,null,null,null,null,null,null,null,"","Î"]
[null,null,"",null,null,null,null,null,null,null,null,null,null,"","Î"]
[null,null,"",null,null,null,null,null,null,null,null,null,null,"","Î"]
[null,null,"",null,null,null,null,null,null,null,null,null,null,"","Î"]
[null,null,"",null,null,null,null,null,null,null,null,null,null,"","Î"]
[]
[{"$f":"HLOOKUP($I$3,A118:F170,44,0)","v":"programming (hardware & software)"},null,null,null,null,null,null,"Gateway Nodes SmartIntego"]
[{"$f":"HLOOKUP(I3,A118:F139,2,0)","v":"Quantity"},{"$f":"HLOOKUP($I$3,A118:F170,45,0)","v":"item description"},null,{"$f":"HLOOKUP($I$3,A118:F170,46,0)","v":"part number "},null,null,null,{"$f":"HLOOKUP(I3,A118:F139,2,0)","v":"Quantity"},{"$f":"HLOOKUP($I$3,A118:F170,45,0)","v":"item description"},null,null,null,null,null,{"$f":"HLOOKUP($I$3,A118:F170,46,0)","v":"part number "}]
[null,null,null,{"$f":"IF(ISERROR(VLOOKUP($B29,J$119:$K$120,2,FALSE)),\"\",VLOOKUP($B29,J$119:$K$120,2,FALSE))","v":""},null,null,null,null,null,null,null,null,null,null,{"$f":"IF(ISERROR(VLOOKUP($I29,J$123:$K$125,2,FALSE)),\"\",VLOOKUP($I29,J$123:$K$125,2,FALSE))","v":""}]
[null,null,null,{"$f":"IF(ISERROR(VLOOKUP($B30,J$119:$K$120,2,FALSE)),\"\",VLOOKUP($B30,J$119:$K$120,2,FALSE))","v":""},null,null,null,null,null,null,null,null,null,null,{"$f":"IF(ISERROR(VLOOKUP($I30,J$123:$K$125,2,FALSE)),\"\",VLOOKUP($I30,J$123:$K$125,2,FALSE))","v":""}]
[null,null,null,null,null,null,null,null,null,null,null,null,null,null,{"$f":"IF(ISERROR(VLOOKUP($I31,J$123:$K$125,2,FALSE)),\"\",VLOOKUP($I31,J$123:$K$125,2,FALSE))","v":""}]
["2016-12-31"]
[]
[]
["Profilname","X","Y",null,null,1,2,3,4,5,6,7,8,9,10,11,12]
[{"$f":"IF($I$3=\"Deutsch\",$A142,IF($I$3=\"English\",$B142,IF($I$3=\"Français\",$C142,IF($I$3=\"Italiano\",$D142,IF($I$3=\"Nederlands\",$E142,IF($I$3=\"Dansk\",$F142,\"\"))))))","v":"Europrofile without MO"},1,1,null,null,70,"00","05","05",70,"00",72,"00",78,"00","05","05"]
["Swiss Round without MO",5,1,null,null,72,null,96,96,72,null,75,null,92]
["Scandinavian Oval without MO",3,3,null,null,75,null,null,null,75,null,78,null,94]
["Europrofile with MO",6,2,null,null,78,null,null,null,78,null,85]
["Swiss Round with MO",8,2,null,null,85,null,null,null,85,null,88]
["Scandinavian Oval with MO",10,2,null,null,88,null,null,null,88,null,90]
[null,null,null,null,null,90,null,null,null,90,null,92]
[null,null,null,null,null,92,null,null,null,92]
[null,null,null,null,null,null,null,null,null,94]
[]
[]
[]
["Befestigung",null,null,null,null,1,2,3]
["A",0,0,null,null,"A","E","C"]
["B",0,0,null,null,"B","F","D"]
["C",1,0,null,null,"C","G"]
["D",1,0,null,null,"D","H"]
["E",1,1,null,null,null,"I"]
["F",1,1,null,null,null,"J"]
["G",1,1,null,null,null,"K"]
["H",1,1,null,null,null,"L"]
["I",1,1]
["J",1,1]
["K",2,2]
["L",2,2]
[]
["Zeile 16",{"$f":"VLOOKUP($F18,$A$49:$C$60,2,FALSE)+VLOOKUP($B18,$A$36:$C$41,2,FALSE)","v":{"$error":"#N/A"}}]
["Zeile 17",{"$error":"#N/A"}]
["Zeile 18",{"$error":"#N/A"}]
["Zeile 19",{"$error":"#N/A"}]
["Zeile 20",{"$error":"#N/A"}]
["Zeile 21",{"$error":"#N/A"}]
["Zeile 22",{"$error":"#N/A"}]
["Zeile 23",{"$error":"#N/A"}]
["Zeile 24",{"$error":"#N/A"}]
[]
[]
[]
[]
[]
[]
[]
[null,null,null,null,null,null,null,null,null,null,null,null,null,null,null,null,null,"Optionen"]
["Türdicke",null,"Drücker außen","Drücker innen","Optionen","Oberfläche","Version",null,null,null,"Lesetechnik",null,"G1/G2",null,null,"Lesetechnik / Optionen"]
["S",null,"A","A","ZK",1,0,1,1,2,0,1,1,2,3,0,1,1,2]
["M",null,"B","B","WPZK",3,1,2,0,"A","A",2,null,"G1","G2","A",2]
["L",null,"C","C","WPZKDP",null,null,null,null,null,null,null,null,"G2",null,null,null,null,"WP"]
[null,null,"D","D","WP"]
[null,null,"E","E"]
[null,null,"F","F"]
[]
[]
["Übersetzung der Profile in Abkürzung",null,null,null,null,"Vierkant"]
[{"$f":"IF($I$3=\"Deutsch\",$A142,IF($I$3=\"English\",$B142,IF($I$3=\"Français\",$C142,IF($I$3=\"Italiano\",$D142,IF($I$3=\"Nederlands\",$E142,IF($I$3=\"Dansk\",$F142,\"\"))))))","v":"Europrofile without MO"},1,"SI.SHA",1,null,1,2,3,4,5]
["Swiss Round without MO",1,"SI.SHA",1,null,"07","08","08","07","08"]
["Scandinavian Oval without MO",2,"SI.SHB",2,null,"08","09","09","08","F8"]
["Europrofile with MO",3,"SI.SHC",1,null,"09","10","10","F8","09"]
["Swiss Round with MO",4,"SI.SHD",1,null,"10",null,null,"09","10"]
["Scandinavian Oval with MO",5,"SI.SHE",2,null,null,null,null,"10"]
[null,null,"S",0]
[null,null,"M",0]
[null,null,"L",1]
[null,null,{"$f":"IF($I$3=\"Deutsch\",$A142,IF($I$3=\"English\",$B142,IF($I$3=\"Français\",$C142,IF($I$3=\"Italiano\",$D142,IF($I$3=\"Nederlands\",$E142,IF($I$3=\"Dansk\",$F142,\"\"))))))","v":"Europrofile without MO"},3]
[null,null,"Swiss Round without MO",0]
[null,null,"Scandinavian Oval without MO",0]
[null,null,"Europrofile with MO",3]
[null,null,"Swiss Round with MO",0]
[null,null,"Scandinavian Oval with MO",0]
[]
[]
["Zeile 18",null,null,{"$f":"VLOOKUP($C18,$C$89:$D$94,2,FALSE)+VLOOKUP($D18,$C$95:$D$97,2,FALSE)+VLOOKUP($B18,$C$98:$D$103,2,FALSE)","v":{"$error":"#N/A"}}]
["Zeile 19",null,null,{"$f":"VLOOKUP($C19,$C$89:$D$94,2,FALSE)+VLOOKUP($D19,$C$95:$D$97,2,FALSE)+VLOOKUP($B19,$C$98:$D$103,2,FALSE)","v":{"$error":"#N/A"}}]
["Zeile 20",null,null,{"$error":"#N/A"}]
["Zeile 21",null,null,{"$error":"#N/A"}]
["Zeile 22",null,null,{"$error":"#N/A"}]
["Zeile 23",null,null,{"$error":"#N/A"}]
["Zeile 24",null,null,{"$error":"#N/A"}]
["Zeile 25",null,null,{"$error":"#N/A"}]
[]
[]
[]
[]
["Deutsch","English","Français","Italiano","Nederlands","Dansk",null,null,1,"Programmierung"]
["Anzahl","Quantity","Quantité","Quantità","Aantal","Antal",null,null,2,{"$f":"IF($I$3=\"Deutsch\",$A$159,IF($I$3=\"English\",$B$159,IF($I$3=\"Français\",$C$159,IF($I$3=\"Italiano\",$D$159,IF($I$3=\"Nederlands\",$E$159,IF($I$3=\"Dansk\",$F$159,\"\"))))))","v":"programming device SmartIntego"},"SI.SMARTCD"]
["Profilname","Lock Type","Type de profil","Tipo di profilo","Sluiting type","SmartHandle / Langskilt type",null,null,3,{"$f":"IF($I$3=\"Deutsch\",$A160,IF($I$3=\"English\",$B160,IF($I$3=\"Français\",$C160,IF($I$3=\"Italiano\",$D160,IF($I$3=\"Nederlands\",$E160,IF($I$3=\"Dansk\",$F160,\"\"))))))","v":"programming software SmartIntego"},"SI.SW"]
["Profil","Lock Code","Profil","Codice del profilo","Sluiting code","Varenummer",null,null,4]
["Türdicke","Door Thickness","Epaisseur de porte","Spessore porta","Deurdikte","Dørtykkelse",null,null,5,"Gateway Nodes"]
["Vierkant","Spindle Square","Carré","Quadro maniglia","Vierkant stift","Grebspind",null,null,6,{"$f":"IF($I$3=\"Deutsch\",$A164,IF($I$3=\"English\",$B164,IF($I$3=\"Français\",$C164,IF($I$3=\"Italiano\",$D164,IF($I$3=\"Nederlands\",$E164,IF($I$3=\"Dansk\",$F164,\"\"))))))","v":"SmartIntego GatewayNode to convert from RS485 port to 868 MHz"},"SI.GN.CR"]
["Befestigung","Fixing / Back Plate Width","Fixation / largeur de plaque","Fissaggio","Bevestiging/ Grondplaat breed","Fastsættelse / Bagplade bredde",null,null,7,{"$f":"IF($I$3=\"Deutsch\",$A165,IF($I$3=\"English\",$B165,IF($I$3=\"Français\",$C165,IF($I$3=\"Italiano\",$D165,IF($I$3=\"Nederlands\",$E165,IF($I$3=\"Dansk\",$F165,\"\"))))))","v":"SmartIntego GatewayNode to convert from Ethernet (TCP/IP) to 868 MHz"},"SI.GN2.ER"]
["Entfernung","Centre Distance","Distance","Interasse","H.O.H. maat","Centerafstand",null,null,8,{"$f":"IF($I$3=\"Deutsch\",$A166,IF($I$3=\"English\",$B166,IF($I$3=\"Français\",$C166,IF($I$3=\"Italiano\",$D166,IF($I$3=\"Nederlands\",$E166,IF($I$3=\"Dansk\",$F166,\"\"))))))","v":"SmartIntego GatewayNode to extend range of 868 MHz transmission path"},"SI.GN.R"]
["Version","Version","Version","Versione","Versie","Version",null,null,9]
["Drücker außen","Handle Variants Outside","Variantes de la béquille extérieure","Maniglia esterna","Deurkruk type Buiten","Håndtagsvarianter Udendørs",null,null,10]
["Drücker innen","Handle Variants Inside","Variantes de la béquille intérieure","Maniglia interna","Deurkruk type Binnen","Håndtagsvarianter Indendørs",null,null,11]
["Oberfläche","Surface Finish","Finition de la surface:","Superficie","Afwerking","Overflade",null,null,12]
["Lesetechnik","Reading Technology","Technique de lecture","Tecnologia di lettura","Leestechniek","Læseteknologi",null,null,13]
["G1/G2","G1/G2","G1 / G2","G1/G2","G1/G2","G1/G2",null,null,14]
["Optionen","Options","Options","Opzioni","Opties","Indstillinger",null,null,15]
["kpl. Artikelnummer","Complete Part Number","Code article complet","Numero articolo completo","Complete onderdeel nummer","Komplet varenummer",null,null,16]
["Kundennummer","Customer No.","Numéro de client","Cliente numero","Klantnr.","Kundenummer",null,null,17]
["Kundenname","Customer Name","Nom du client","Nome cliente","Klant naam","Kundenavn",null,null,18]
["Projekt-Nr.  ","Project No.","Numéro de projet","Progetto numero","Projectnr.","Projektnummer",null,null,19]
["Projekt-Name  ","Project Name","Nom du projet","Nome progetto","Project naam","Projektnavn",null,null,20]
["Anlage zu Bestellnummer  ","Attachment to Order No.","Pièce(s) jointe(s) à la commande","Allegato all'ordine","Bijlage bij ordernr.","Tillæg til ordrenummer",null,null,21]
["Bestellhilfe Digitales SmartHandle","Ordering Guide Digital SmartHandle","Guide de commande pour plaques béquilles","Guida all'ordinazione di Smart Handle","Bestelhulp Digitale SmartHandle","Bestillingsvejledning Digital SmartHandle (Langskilt)",null,null,22]
["Europrofil / Swiss Round","Europrofile / Swiss Round","Profil européen / Profil suisse","profilo europeo / tondo svizzero","Euro profiel / Swiss Round","Europrofil / Schweizisk Rund",null,null,23]
["Drückervariante auswählen","select handle variant","Variantes poignée ","Variante maniglia","Deurkruk variant","Vælg håndtagsvariant",null,null,24]
["Europrofil ohne MO","Europrofile without MO","profil européen sans VM","profilo europeo senza MO","Euro profiel zonder MO","Europrofil uden udstandsning til låsecylinder",null,null,25]
["Swiss Round ohne MO","Swiss Round without MO","profil suisse sans VM","tondo svizzero senza MO","Swiss Round zonder MO","Schweizisk Rund uden udstandsning til låsecylinder",null,null,26]
["Scandinavian Oval ohne MO","Scandinavian Oval without MO","Ovale scandinave sans VM","Scandinavian Oval senza MO","Scandinavian Oval zonder MO","Skandinavisk Oval uden udstandsning til låsecylinder",null,null,27]
["Europrofil mit MO","Europrofile with MO","profil européen avec VM","profilo europeo con MO","Euro profiel met MO","Europrofil med udstandsning til låsecylinder",null,null,28]
["Swiss Round mit MO","Swiss Round with MO","profil suisse avec VM","tondo svizzero con MO","Swiss Round met MO","Schweizisk Rund med udstandsning til låsecylinder",null,null,29]
["Scandinavian Oval mit MO","Scandinavian Oval with MO","Ovale scandinave avec VM","Scandinavian Oval con MO","Scandinavian Oval met MO","Skandinavisk Oval med udstandsning til låsecylinder",null,null,30]
["Artikelnummer korrekt?","part numer correct?","Code article correct?","Numero articolo giusto?","onderdeel nummer juist?","Korrekt varenummer?",null,null,31]
["Download Bestellhilfe","Download of the ordering guide","Téléchargement Guide de commande","Scaricamento del Guida all'ordinazione di Smart Handle","Download Bestelhulp Digitale SmartHandle","Download bestillingsvejledning",null,null,32]
["*** Bitte Makros aktivieren ***","*** Please enable macros ***","*** S'il vous plaît activer les macros ***","*** Si prega di abilitare le macro ***","*** Schakel macro's ***","*** Aktiver venligst makroer ***",null,null,33]
["zum Produkt:","about the product:","voir le produit:","vai al prodotto:","product bekijken:","om produktet:",null,null,34]
["http://www.smartintego.com/de/home/produkte/digitales-smart-handle-si/","http://www.smartintego.com/int/home/products/digital-smart-handle-si/","http://www.smartintego.com/int/home/products/digital-smart-handle-si/","http://www.smartintego.com/int/home/products/digital-smart-handle-si/","http://www.smartintego.com/int/home/products/digital-smart-handle-si/","http://www.smartintego.com/int/home/products/digital-smart-handle-si/",null,null,35]
["Digitales SmartHandle SI","Digital SmartHandle SI","Digital SmartHandle SI","Digital SmartHandle SI","Digital SmartHandle SI","Digital SmartHandle / Langskilt SI (engelsk)",null,null,36]
["http://www.smartintego.com/fileadmin/SmartIntego/PDFs/Produktkatalog_SmartIntego_DE.pdf","http://www.smartintego.com/fileadmin/SmartIntego/PDFs/Productcatalogue%20_SmartIntego_EN.pdf","http://www.smartintego.com/fileadmin/SmartIntego/PDFs/Productcatalogue%20_SmartIntego_EN.pdf","http://www.smartintego.com/fileadmin/SmartIntego/PDFs/Productcatalogue%20_SmartIntego_EN.pdf","http://www.smartintego.com/fileadmin/SmartIntego/PDFs/Productcatalogue%20_SmartIntego_EN.pdf","http://www.smartintego.com/fileadmin/SmartIntego/PDFs/Productcatalogue%20_SmartIntego_EN.pdf",null,null,37]
["Produktkatalog SmartIntego","Product Catalogue SmartIntego","Product Catalogue SmartIntego","Product Catalogue SmartIntego","Product Catalogue SmartIntego","Produktkatalog SmartIntego (engelsk)",null,null,38]
["http://www.smartintego.com/fileadmin/SmartIntego/PDFs/Broschuere_SmartIntego_DE.pdf","http://www.smartintego.com/fileadmin/SmartIntego/PDFs/Brochure_SmartIntego_UK.pdf","http://www.smartintego.com/fileadmin/SmartIntego/PDFs/Brochure_SmartIntego_UK.pdf","http://www.smartintego.com/fileadmin/SmartIntego/PDFs/Brochure_SmartIntego_UK.pdf","http://www.smartintego.com/fileadmin/SmartIntego/PDFs/Brochure_SmartIntego_UK.pdf","http://www.smartintego.com/fileadmin/SmartIntego/PDFs/Brochure_SmartIntego_UK.pdf",null,null,39]
["Broschüre SmartIntego","Brochure SmartIntego","Brochure SmartIntego","Brochure SmartIntego","Brochure SmartIntego","Brochure SmartIntego",null,null,40]
["Bemerkungen","Comments","Remarque","Note","Beperkingen","Bemærkninger",null,null,41]
["Programmiergerät SmartIntego","programming device SmartIntego","programming device SmartIntego","programming device SmartIntego","programming device SmartIntego","Konfigurationsenhed SmartIntego",null,null,42]
["Programmiersoftware SmartIntego","programming software SmartIntego","programming software SmartIntego","programming software SmartIntego","programming software SmartIntego","Konfigurationssoftware SmartIntego",null,null,43]
["Programmierung (Hardware & Software)","programming (hardware & software)","programming (hardware & software)","programming (hardware & software)","programming (hardware & software)","Konfiguration (hardware & software)",null,null,44]
["Artikelbeschreibung","item description","item description","item description","item description","Produktbeskrivelse",null,null,45]
["Artikelnummer  ","part number ","part number ","part number ","part number ","Varenummer",null,null,46]
["SmartIntego GatewayNode zur Umsetzung von der RS 485 Schnittstelle auf 868 MHz","SmartIntego GatewayNode to convert from RS485 port to 868 MHz","SmartIntego GatewayNode to convert from RS485 port to 868 MHz","SmartIntego GatewayNode to convert from RS485 port to 868 MHz","SmartIntego GatewayNode to convert from RS485 port to 868 MHz","SmartIntego GatewayNode til konvertering fra RS485 port til 868 MHz",null,null,47]
["SmartIntego GatewayNode zur Umsetzung von Ethernet (TCP/IP) auf 868 MHz","SmartIntego GatewayNode to convert from Ethernet (TCP/IP) to 868 MHz","SmartIntego GatewayNode to convert from Ethernet (TCP/IP) to 868 MHz","SmartIntego GatewayNode to convert from Ethernet (TCP/IP) to 868 MHz","SmartIntego GatewayNode to convert from Ethernet (TCP/IP) to 868 MHz","SmartIntego GatewayNode til konvertering fra Ethernet (TCP/IP) til 868 MHz",null,null,48]
["SmartIntego GatewayNode zur Reichweitenverlängerung der 868 MHz Funkstrecke ","SmartIntego GatewayNode to extend range of 868 MHz transmission path","SmartIntego GatewayNode to extend range of 868 MHz transmission path","SmartIntego GatewayNode to extend range of 868 MHz transmission path","SmartIntego GatewayNode to extend range of 868 MHz transmission path","SmartIntego GatewayNode til at udvide rækkevidden af 868 MHz radioforbindelse",null,null,49]
["Scandinavian Oval","Scandinavian Oval","Ovale scandinave","Scandinavian Oval","Scandinavian Oval","Skandinavisk Oval",null,null,50]
["http://www.smartintego.com/de/home/infocenter/downloads/","http://www.smartintego.com/int/home/infocenter/downloads/","http://www.smartintego.com/int/home/infocenter/downloads/","http://www.smartintego.com/int/home/infocenter/downloads/","http://www.smartintego.com/int/home/infocenter/downloads/","http://www.smartintego.com/int/home/infocenter/downloads/",null,null,51]
[null,null,null,null,null,null,null,null,52]
[null,null,null,null,null,null,null,null,53]
["Î","P",null,null,null,null,null,null,54]
[null,null,null,null,null,null,null,null,55]
[null,null,null,null,null,null,null,null,56]
[null,null,null,null,null,null,null,null,57]
[null,null,null,null,null,null,null,null,58]
[null,null,null,null,null,null,null,null,59]
[null,null,null,null,null,null,null,null,60]
[null,null,null,null,null,null,null,null,61]
[null,null,null,null,null,null,null,null,62]
[null,null,null,null,null,null,null,null,63]
[null,null,null,null,null,null,null,null,64]
[null,null,null,null,null,null,null,null,65]
[null,null,null,null,null,null,null,null,66]
[null,null,null,null,null,null,null,null,67]
[null,null,null,null,null,null,null,null,68]
[null,null,null,null,null,null,null,null,69]
[null,null,null,null,null,null,null,null,70]
[null,null,null,null,null,null,null,null,71]
[null,null,null,null,null,null,null,null,72]
[null,null,null,null,null,null,null,null,73]
[null,null,null,null,null,null,null,null,74]
[null,null,null,null,null,null,null,null,75]
[null,null,null,null,null,null,null,null,76]
[null,null,null,null,null,null,null,null,77]
[null,null,null,null,null,null,null,null,78]
[null,null,null,null,null,null,null,null,79]
[null,null,null,null,null,null,null,null,80]
[null,null,null,null,null,null,null,null,81]
[null,null,null,null,null,null,null,null,82]
[null,null,null,null,null,null,null,null,83]
[null,null,null,null,null,null,null,null,84]
[null,null,null,null,null,null,null,null,85]
[null,null,null,null,null,null,null,null,86]
[null,null,null,null,null,null,null,null,87]
[null,null,null,null,null,null,null,null,88]
[null,null,null,null,null,null,null,null,89]
[null,null,null,null,null,null,null,null,90]
[null,null,null,null,null,null,null,null,91]
[null,null,null,null,null,null,null,null,92]
[null,null,null,null,null,null,null,null,93]
[null,null,null,null,null,null,null,null,94]
[null,null,null,null,null,null,null,null,95]
[null,null,null,null,null,null,null,null,96]
[null,null,null,null,null,null,null,null,97]
[null,null,null,null,null,null,null,null,98]
[null,null,null,null,null,null,null,null,99]
[null,null,null,null,null,null,null,null,100]
[null,null,null,null,null,null,null,null,101]
[null,null,null,null,null,null,null,null,102]
[null,null,null,null,null,null,null,null,103]
[null,null,null,null,null,null,null,null,104]
[null,null,null,null,null,null,null,null,105]
[null,null,null,null,null,null,null,null,106]
[null,null,null,null,null,null,null,null,107]
[null,null,null,null,null,null,null,null,108]
[null,null,null,null,null,null,null,null,109]
[null,null,null,null,null,null,null,null,110]
[null,null,null,null,null,null,null,null,111]
[null,null,null,null,null,null,null,null,112]
[null,null,null,null,null,null,null,null,113]
[null,null,null,null,null,null,null,null,114]
[null,null,null,null,null,null,null,null,115]
[null,null,null,null,null,null,null,null,116]
[null,null,null,null,null,null,null,null,117]
[null,null,null,null,null,null,null,null,118]
[null,null,null,null,null,null,null,null,119]
[null,null,null,null,null,null,null,null,120]
[null,null,null,null,null,null,null,null,121]
[null,null,null,null,null,null,null,null,122]
[null,null,null,null,null,null,null,null,123]
[null,null,null,null,null,null,null,null,124]
[null,null,null,null,null,null,null,null,125]
[null,null,null,null,null,null,null,null,126]
[null,null,null,null,null,null,null,null,127]
[null,null,null,null,null,null,null,null,128]
[null,null,null,null,null,null,null,null,129]
[null,null,null,null,null,null,null,null,130]
[null,null,null,null,null,null,null,null,131]
[null,null,null,null,null,null,null,null,132]
[null,null,null,null,null,null,null,null,133]
[null,null,null,null,null,null,null,null,134]
[null,null,null,null,null,null,null,null,135]
[null,null,null,null,null,null,null,null,136]
[null,null,null,null,null,null,null,null,137]
[null,null,null,null,null,null,null,null,138]
[null,null,null,null,null,null,null,null,139]
[null,null,null,null,null,null,null,null,140]
[null,null,null,null,null,null,null,null,141]
[null,null,null,null,null,null,null,null,142]
[null,null,null,null,null,null,null,null,143]
[null,null,null,null,null,null,null,null,144]
[null,null,null,null,null,null,null,null,145]
[null,null,null,null,null,null,null,null,146]
[null,null,null,null,null,null,null,null,147]
[null,null,null,null,null,null,null,null,148]
[null,null,null,null,null,null,null,null,149]
[null,null,null,null,null,null,null,null,150]
[null,null,null,null,null,null,null,null,151]
[null,null,null,null,null,null,null,null,152]
[null,null,null,null,null,null,null,null,153]
[null,null,null,null,null,null,null,null,154]
[null,null,null,null,null,null,null,null,155]
[null,null,null,null,null,null,null,null,156]
[null,null,null,null,null,null,null,null,157]
[null,null,null,null,null,null,null,null,158]
[null,null,null,null,null,null,null,null,159]
[null,null,null,null,null,null,null,null,160]
[null,null,null,null,null,null,null,null,161]
[null,null,null,null,null,null,null,null,162]
[null,null,null,null,null,null,null,null,163]
[null,null,null,null,null,null,null,null,164]
[null,null,null,null,null,null,null,null,165]
[null,null,null,null,null,null,null,null,166]
[null,null,null,null,null,null,null,null,167]
[null,null,null,null,null,null,null,null,168]
[null,null,null,null,null,null,null,null,169]
[null,null,null,null,null,null,null,null,170]
[null,null,null,null,null,null,null,null,171]
[null,null,null,null,null,null,null,null,172]
[null,null,null,null,null,null,null,null,173]
[null,null,null,null,null,null,null,null,174]
[null,null,null,null,null,null,null,null,175]
[null,null,null,null,null,null,null,null,176]
[null,null,null,null,null,null,null,null,177]
[null,null,null,null,null,null,null,null,178]
[null,null,null,null,null,null,null,null,179]
[null,null,null,null,null,null,null,null,180]
[null,null,null,null,null,null,null,null,181]
[null,null,null,null,null,null,null,null,182]
[null,null,null,null,null,null,null,null,183]
[null,null,null,null,null,null,null,null,184]
[null,null,null,null,null,null,null,null,185]
[null,null,null,null,null,null,null,null,186]
[null,null,null,null,null,null,null,null,187]
[null,null,null,null,null,null,null,null,188]
[null,null,null,null,null,null,null,null,189]
[null,null,null,null,null,null,null,null,190]
[null,null,null,null,null,null,null,null,191]
[null,null,null,null,null,null,null,null,192]
[null,null,null,null,null,null,null,null,193]
[null,null,null,null,null,null,null,null,194]
[null,null,null,null,null,null,null,null,195]
[null,null,null,null,null,null,null,null,196]
[null,null,null,null,null,null,null,null,197]
[null,null,null,null,null,null,null,null,198]
[null,null,null,null,null,null,null,null,199]
[null,null,null,null,null,null,null,null,200]
[null,null,null,null,null,null,null,null,201]
[null,null,null,null,null,null,null,null,202]
[null,null,null,null,null,null,null,null,203]
[null,null,null,null,null,null,null,null,204]
[null,null,null,null,null,null,null,null,205]
[null,null,null,null,null,null,null,null,206]
[null,null,null,null,null,null,null,null,207]
[null,null,null,null,null,null,null,null,208]
[null,null,null,null,null,null,null,null,209]
[null,null,null,null,null,null,null,null,210]
[null,null,null,null,null,null,null,null,211]
[null,null,null,null,null,null,null,null,212]
[null,null,null,null,null,null,null,null,213]
[null,null,null,null,null,null,null,null,214]
[null,null,null,null,null,null,null,null,215]
[null,null,null,null,null,null,null,null,216]
[null,null,null,null,null,null,null,null,217]
[null,null,null,null,null,null,null,null,218]
[null,null,null,null,null,null,null,null,219]
[null,null,null,null,null,null,null,null,220]
[null,null,null,null,null,null,null,null,221]
[null,null,null,null,null,null,null,null,222]
[null,null,null,null,null,null,null,null,223]
[null,null,null,null,null,null,null,null,224]
[null,null,null,null,null,null,null,null,225]
[null,null,null,null,null,null,null,null,226]
[null,null,null,null,null,null,null,null,227]
[null,null,null,null,null,null,null,null,228]
[null,null,null,null,null,null,null,null,229]
[null,null,null,null,null,null,null,null,230]
[null,null,null,null,null,null,null,null,231]
[null,null,null,null,null,null,null,null,232]
[null,null,null,null,null,null,null,null,233]
[null,null,null,null,null,null,null,null,234]
[null,null,null,null,null,null,null,null,235]
[null,null,null,null,null,null,null,null,236]
[null,null,null,null,null,null,null,null,237]
[null,null,null,null,null,null,null,null,238]
[null,null,null,null,null,null,null,null,239]
[null,null,null,null,null,null,null,null,240]
[null,null,null,null,null,null,null,null,241]
[null,null,null,null,null,null,null,null,242]
[null,null,null,null,null,null,null,null,243]
[null,null,null,null,null,null,null,null,244]
[null,null,null,null,null,null,null,null,245]
[null,null,null,null,null,null,null,null,246]
[null,null,null,null,null,null,null,null,247]
[null,null,null,null,null,null,null,null,248]
[null,null,null,null,null,null,null,null,249]
[null,null,null,null,null,null,null,null,250]
[null,null,null,null,null,null,null,null,251]
[null,null,null,null,null,null,null,null,252]
[null,null,null,null,null,null,null,null,253]
[null,null,null,null,null,null,null,null,254]
[null,null,null,null,null,null,null,null,255]
[null,null,null,null,null,null,null,null,256]
[null,null,null,null,null,null,null,null,257]
[null,null,null,null,null,null,null,null,258]
[null,null,null,null,null,null,null,null,259]
[null,null,null,null,null,null,null,null,260]
[null,null,null,null,null,null,null,null,261]
[null,null,null,null,null,null,null,null,262]
[null,null,null,null,null,null,null,null,263]
[null,null,null,null,null,null,null,null,264]
[null,null,null,null,null,null,null,null,265]
[null,null,null,null,null,null,null,null,266]
[null,null,null,null,null,null,null,null,267]
[null,null,null,null,null,null,null,null,268]
[null,null,null,null,null,null,null,null,269]
[null,null,null,null,null,null,null,null,270]
[null,null,null,null,null,null,null,null,271]
[null,null,null,null,null,null,null,null,272]
[null,null,null,null,null,null,null,null,273]
[null,null,null,null,null,null,null,null,274]
[null,null,null,null,null,null,null,null,275]
[null,null,null,null,null,null,null,null,276]
[null,null,null,null,null,null,null,null,277]
[null,null,null,null,null,null,null,null,278]
[null,null,null,null,null,null,null,null,279]
[null,null,null,null,null,null,null,null,280]
[null,null,null,null,null,null,null,null,281]
[null,null,null,null,null,null,null,null,282]
[null,null,null,null,null,null,null,null,283]
[null,null,null,null,null,null,null,null,284]
[null,null,null,null,null,null,null,null,285]
[null,null,null,null,null,null,null,null,286]
[null,null,null,null,null,null,null,null,287]
[null,null,null,null,null,null,null,null,288]
[null,null,null,null,null,null,null,null,289]
[null,null,null,null,null,null,null,null,290]
[null,null,null,null,null,null,null,null,291]
[null,null,null,null,null,null,null,null,292]
[null,null,null,null,null,null,null,null,293]
[null,null,null,null,null,null,null,null,294]
[null,null,null,null,null,null,null,null,295]
[null,null,null,null,null,null,null,null,296]
[null,null,null,null,null,null,null,null,297]
[null,null,null,null,null,null,null,null,298]
[null,null,null,null,null,null,null,null,299]
[null,null,null,null,null,null,null,null,300]
[null,null,null,null,null,null,null,null,301]
[null,null,null,null,null,null,null,null,302]
[null,null,null,null,null,null,null,null,303]
[null,null,null,null,null,null,null,null,304]
[null,null,null,null,null,null,null,null,305]
[null,null,null,null,null,null,null,null,306]
[null,null,null,null,null,null,null,null,307]
[null,null,null,null,null,null,null,null,308]
[null,null,null,null,null,null,null,null,309]
[null,null,null,null,null,null,null,null,310]
[null,null,null,null,null,null,null,null,311]
[null,null,null,null,null,null,null,null,312]
[null,null,null,null,null,null,null,null,313]
[null,null,null,null,null,null,null,null,314]
[null,null,null,null,null,null,null,null,315]
[null,null,null,null,null,null,null,null,316]
[null,null,null,null,null,null,null,null,317]
[null,null,null,null,null,null,null,null,318]
[null,null,null,null,null,null,null,null,319]
[null,null,null,null,null,null,null,null,320]
[null,null,null,null,null,null,null,null,321]
[null,null,null,null,null,null,null,null,322]
[null,null,null,null,null,null,null,null,323]
[null,null,null,null,null,null,null,null,324]
[null,null,null,null,null,null,null,null,325]
[null,null,null,null,null,null,null,null,326]
[null,null,null,null,null,null,null,null,327]
[null,null,null,null,null,null,null,null,328]
[null,null,null,null,null,null,null,null,329]
[null,null,null,null,null,null,null,null,330]
[null,null,null,null,null,null,null,null,331]
[null,null,null,null,null,null,null,null,332]
[null,null,null,null,null,null,null,null,333]
[null,null,null,null,null,null,null,null,334]
[null,null,null,null,null,null,null,null,335]
[null,null,null,null,null,null,null,null,336]
[null,null,null,null,null,null,null,null,337]
[null,null,null,null,null,null,null,null,338]
[null,null,null,null,null,null,null,null,339]
[null,null,null,null,null,null,null,null,340]
[null,null,null,null,null,null,null,null,341]
[null,null,null,null,null,null,null,null,342]
[null,null,null,null,null,null,null,null,343]
[null,null,null,null,null,null,null,null,344]
[null,null,null,null,null,null,null,null,345]
[null,null,null,null,null,null,null,null,346]
[null,null,null,null,null,null,null,null,347]
[null,null,null,null,null,null,null,null,348]
[null,null,null,null,null,null,null,null,349]
[null,null,null,null,null,null,null,null,350]
[null,null,null,null,null,null,null,null,351]
[null,null,null,null,null,null,null,null,352]
[null,null,null,null,null,null,null,null,353]
[null,null,null,null,null,null,null,null,354]
[null,null,null,null,null,null,null,null,355]
[null,null,null,null,null,null,null,null,356]
[null,null,null,null,null,null,null,null,357]
[null,null,null,null,null,null,null,null,358]
[null,null,null,null,null,null,null,null,359]
[null,null,null,null,null,null,null,null,360]
[null,null,null,null,null,null,null,null,361]
[null,null,null,null,null,null,null,null,362]
[null,null,null,null,null,null,null,null,363]
[null,null,null,null,null,null,null,null,364]
[null,null,null,null,null,null,null,null,365]
[null,null,null,null,null,null,null,null,366]
[null,null,null,null,null,null,null,null,367]
[null,null,null,null,null,null,null,null,368]
[null,null,null,null,null,null,null,null,369]
[null,null,null,null,null,null,null,null,370]
[null,null,null,null,null,null,null,null,371]
[null,null,null,null,null,null,null,null,372]
[null,null,null,null,null,null,null,null,373]
[null,null,null,null,null,null,null,null,374]
[null,null,null,null,null,null,null,null,375]
[null,null,null,null,null,null,null,null,376]
[null,null,null,null,null,null,null,null,377]
[null,null,null,null,null,null,null,null,378]
[null,null,null,null,null,null,null,null,379]
[null,null,null,null,null,null,null,null,380]
[null,null,null,null,null,null,null,null,381]
[null,null,null,null,null,null,null,null,382]
[null,null,null,null,null,null,null,null,383]
[null,null,null,null,null,null,null,null,384]
[null,null,null,null,null,null,null,null,385]
[null,null,null,null,null,null,null,null,386]
[null,null,null,null,null,null,null,null,387]
[null,null,null,null,null,null,null,null,388]
[null,null,null,null,null,null,null,null,389]
[null,null,null,null,null,null,null,null,390]
[null,null,null,null,null,null,null,null,391]
[null,null,null,null,null,null,null,null,392]
[null,null,null,null,null,null,null,null,393]
[null,null,null,null,null,null,null,null,394]
[null,null,null,null,null,null,null,null,395]
[null,null,null,null,null,null,null,null,396]
[null,null,null,null,null,null,null,null,397]
[null,null,null,null,null,null,null,null,398]
[null,null,null,null,null,null,null,null,399]
[null,null,null,null,null,null,null,null,400]
[null,null,null,null,null,null,null,null,401]
[null,null,null,null,null,null,null,null,402]
[null,null,null,null,null,null,null,null,403]
[null,null,null,null,null,null,null,null,404]
[null,null,null,null,null,null,null,null,405]
[null,null,null,null,null,null,null,null,406]
[null,null,null,null,null,null,null,null,407]
[null,null,null,null,null,null,null,null,408]
[null,null,null,null,null,null,null,null,409]
[null,null,null,null,null,null,null,null,410]
[null,null,null,null,null,null,null,null,411]
[null,null,null,null,null,null,null,null,412]
[null,null,null,null,null,null,null,null,413]
[null,null,null,null,null,null,null,null,414]
[null,null,null,null,null,null,null,null,415]
[null,null,null,null,null,null,null,null,416]
[null,null,null,null,null,null,null,null,417]
[null,null,null,null,null,null,null,null,418]
[null,null,null,null,null,null,null,null,419]
[null,null,null,null,null,null,null,null,420]
[null,null,null,null,null,null,null,null,421]
[null,null,null,null,null,null,null,null,422]
[null,null,null,null,null,null,null,null,423]
[null,null,null,null,null,null,null,null,424]
[null,null,null,null,null,null,null,null,425]
[null,null,null,null,null,null,null,null,426]
[null,null,null,null,null,null,null,null,427]
[null,null,null,null,null,null,null,null,428]
[null,null,null,null,null,null,null,null,429]
[null,null,null,null,null,null,null,null,430]
[null,null,null,null,null,null,null,null,431]
[null,null,null,null,null,null,null,null,432]
[null,null,null,null,null,null,null,null,433]
[null,null,null,null,null,null,null,null,434]
[null,null,null,null,null,null,null,null,435]
[null,null,null,null,null,null,null,null,436]
[null,null,null,null,null,null,null,null,437]
[null,null,null,null,null,null,null,null,438]
[null,null,null,null,null,null,null,null,439]
[null,null,null,null,null,null,null,null,440]
[null,null,null,null,null,null,null,null,441]
[null,null,null,null,null,null,null,null,442]
[null,null,null,null,null,null,null,null,443]
[null,null,null,null,null,null,null,null,444]
[null,null,null,null,null,null,null,null,445]
[null,null,null,null,null,null,null,null,446]
[null,null,null,null,null,null,null,null,447]
[null,null,null,null,null,null,null,null,448]
[null,null,null,null,null,null,null,null,449]
[null,null,null,null,null,null,null,null,450]
[null,null,null,null,null,null,null,null,451]
[null,null,null,null,null,null,null,null,452]
[null,null,null,null,null,null,null,null,453]
[null,null,null,null,null,null,null,null,454]
[null,null,null,null,null,null,null,null,455]
[null,null,null,null,null,null,null,null,456]
[null,null,null,null,null,null,null,null,457]
[null,null,null,null,null,null,null,null,458]
[null,null,null,null,null,null,null,null,459]
[null,null,null,null,null,null,null,null,460]
[null,null,null,null,null,null,null,null,461]
[null,null,null,null,null,null,null,null,462]
[null,null,null,null,null,null,null,null,463]
[null,null,null,null,null,null,null,null,464]
[null,null,null,null,null,null,null,null,465]
[null,null,null,null,null,null,null,null,466]
[null,null,null,null,null,null,null,null,467]
[null,null,null,null,null,null,null,null,468]
[null,null,null,null,null,null,null,null,469]
[null,null,null,null,null,null,null,null,470]
[null,null,null,null,null,null,null,null,471]
[null,null,null,null,null,null,null,null,472]
[null,null,null,null,null,null,null,null,473]
[null,null,null,null,null,null,null,null,474]
[null,null,null,null,null,null,null,null,475]
[null,null,null,null,null,null,null,null,476]
[null,null,null,null,null,null,null,null,477]
[null,null,null,null,null,null,null,null,478]
[null,null,null,null,null,null,null,null,479]
[null,null,null,null,null,null,null,null,480]
[null,null,null,null,null,null,null,null,481]
[null,null,null,null,null,null,null,null,482]
[null,null,null,null,null,null,null,null,483]
[null,null,null,null,null,null,null,null,484]
[null,null,null,null,null,null,null,null,485]
[null,null,null,null,null,null,null,null,486]
[null,null,null,null,null,null,null,null,487]
[null,null,null,null,null,null,null,null,488]
[null,null,null,null,null,null,null,null,489]
[null,null,null,null,null,null,null,null,490]
[null,null,null,null,null,null,null,null,491]
[null,null,null,null,null,null,null,null,492]
[null,null,null,null,null,null,null,null,493]
[null,null,null,null,null,null,null,null,494]
[null,null,null,null,null,null,null,null,495]
[null,null,null,null,null,null,null,null,496]
[null,null,null,null,null,null,null,null,497]
[null,null,null,null,null,null,null,null,498]
[null,null,null,null,null,null,null,null,499]
[null,null,null,null,null,null,null,null,500]

{"sheet":"SI_Zylinder","index":1,"n_rows":709,"n_cols":11,"rows_kept":709,"cut":false,"hidden":false,"merged":[[28,0,35,8],[4,7,4,8],[5,7,5,8],[13,3,13,4],[15,1,15,2],[18,1,18,2],[1,5,1,6],[2,5,2,6],[3,5,3,6]]}
[]
["SmartIntego",null,null,null,null,"Sprache / language / langue / lingua / taal / sprog"]
[{"$f":"HLOOKUP($F$3,A210:F230,14,0)","v":"Bestellhilfe Digitale Schließzylinder"},null,null,null,null,"Deutsch"]
[null,null,null,null,null,{"$f":"HLOOKUP($F$3,A210:F230,21,0)","v":"*** Bitte Makros aktivieren ***"}]
[null,null,null,null,null,null,null,"Version 1.7 / 2015.02"]
[{"$f":"HLOOKUP($F$3,A210:F230,3,0)","v":"Profil"},{"$f":"IF(OR(A7=\"Scandinavian_Oval\",A7=\"Scandinavian_Round\"),\"\",HLOOKUP($F$3,A210:F233,23,0))","v":"                Außenlänge"},null,{"$f":"IF(OR(A7=\"Scandinavian_Oval\",A7=\"Scandinavian_Round\"),\"\",HLOOKUP($F$3,A210:F233,24,0))","v":"Innenlänge"},null,null,null,{"$f":"HYPERLINK(HLOOKUP($F$3,A210:F242,33,0),HLOOKUP($F$3,A210:F230,20,0))","v":"Download Bestellhilfe"}]
["Europrofil",null,null,null,null,null,null,{"$f":"HLOOKUP($F$3,A210:F234,25,0)","v":"zum Produkt"}]
[null,{"$f":"HLOOKUP($F$3,A210:E233,22,0)","v":"    Maßangaben in mm"},null,null,null,null,null,{"$f":"HYPERLINK(HLOOKUP($F$3,A210:F236,26,0),HLOOKUP($F$3,A210:F236,27,0))","v":"Digitale Schließzylinder SI"}]
[null,null,null,null,null,null,null,{"$f":"HYPERLINK(HLOOKUP($F$3,A210:F238,28,0),HLOOKUP($F$3,A210:F238,29,0))","v":"Produktkatalog SmartIntego"}]
[null,null,null,null,null,null,null,{"$f":"HYPERLINK(HLOOKUP($F$3,A210:F240,30,0),HLOOKUP($F$3,A210:F240,31,0))","v":"Broschüre SmartIntego"}]
[]
[null,{"$f":"HLOOKUP($F$3,A210:F233,22,0)","v":"    Maßangaben in mm"}]
[]
[{"$f":"HLOOKUP($F$3,A210:F230,10,0)","v":"Kundenname"},null,null,{"$f":"HLOOKUP($F$3,A210:F230,9,0)","v":"Kundennummer"},null,null,null,{"$f":"HLOOKUP($F$3,A210:F230,13,0)","v":"Anlage zu Bestellnummer  "}]
[]
[{"$f":"HLOOKUP($F$3,A210:F230,12,0)","v":"Projekt-Name  "},null,null,null,null,null,null,{"$f":"HLOOKUP($F$3,A210:F230,11,0)","v":"Projekt-Nr.  "}]
[]
[]
[{"$f":"HLOOKUP($F$3,A210:F230,2,0)","v":"Anzahl"},{"$f":"HLOOKUP($F$3,A210:F230,3,0)","v":"Profil"},null,{"$f":"HLOOKUP($F$3,A210:F230,4,0)","v":"Variante"},{"$f":"HLOOKUP($F$3,A210:F230,5,0)","v":"Optionen"},{"$f":"HLOOKUP($F$3,A210:F230,6,0)","v":"Außenlänge"},{"$f":"HLOOKUP($F$3,A210:F230,7,0)","v":"Innenlänge"},{"$f":"HLOOKUP($F$3,A210:F230,8,0)","v":"kpl. Artikelnummer"},{"$f":"HLOOKUP($F$3,A210:F230,19,0)","v":"Artikelnummer korrekt?"}]
[null,null,{"$f":"IF(ISERROR(VLOOKUP(B20,$A$104:$B$107,2,FALSE)),\"\",VLOOKUP(B20,$A$104:$B$107,2,FALSE))","v":""},null,null,null,null,{"$f":"$C20&$F20&$G20&$D20&$E20","v":""},{"$f":"IF(AND(OR($D20=\"I30\",$D20=\"A40.MI\"),AND($C20<>\"\",$A20<>\"\")),$B$207,IF(AND(OR($D20<>\"I30\",$D20<>\"A40.MI\")*AND($A20<>\"\",$C20<>\"\",$F20<>\"\",$G20<>\"\")),$B$207,$A$207))","v":"Î"}]
[null,null,{"$f":"IF(ISERROR(VLOOKUP(B21,$A$104:$B$107,2,FALSE)),\"\",VLOOKUP(B21,$A$104:$B$107,2,FALSE))","v":""},null,null,null,null,{"$f":"$C21&$F21&$G21&$D21&$E21","v":""},"Î"]
[null,null,"",null,null,null,null,"","Î"]
[null,null,"",null,null,null,null,"","Î"]
[null,null,"",null,null,null,null,"","Î"]
[null,null,"",null,null,null,null,"","Î"]
[null,null,"",null,null,null,null,"","Î"]
[]
[{"$f":"HLOOKUP($F$3,A210:F241,32,0)","v":"Bemerkungen"}]
[]
[]
[]
[]
[]
[]
[]
[]
[]
[]
[null,null,"Optionen"]
[null,"Variante","MS","WP","MR","DK","SW"]
["SI.Z4.","MI.CO",null,null,null,null,null,1]
["SI.Z4.","MI.CO","X",null,null,null,null,1]
["SI.Z4.","MI.CO",null,"X",null,null,null,1]
["SI.Z4.","MI.CO","X","X",null,null,null,1]
["SI.Z4.","MI.FD",null,null,null,null,null,3]
["SI.Z4.","MI.FD","X",null,null,null,null,3]
["SI.Z4.","MI.FD",null,"X",null,null,null,3]
["SI.Z4.","MI.FD",null,null,"X",null,null,3]
["SI.Z4.","MI.FD","X",null,"X",null,null,3]
["SI.Z4.","MI.FD","X","X",null,null,null,3]
["SI.Z4.","MI.FD",null,"X","X",null,null,3]
["SI.Z4.","MI.FD","X","X","X",null,null,3]
["SI.Z4.","MI.AP2.FD",null,null,null,null,null,1]
["SI.Z4.","MI.AP2.FD","X",null,null,null,null,1]
["SI.Z4.","MI.AP2.FD",null,"X",null,null,null,1]
["SI.Z4.","MI.AP2.FD","X","X",null,null,null,1]
["SI.Z4.","MI.AP2.BL",null,null,null,null,null,1]
["SI.Z4.","MI.AP2.BL","X",null,null,null,null,1]
["SI.Z4.","MI.AP2.BL",null,"X",null,null,null,1]
["SI.Z4.","MI.AP2.BL","X","X",null,null,null,1]
["SI.Z4.","MI.HZ",null,null,null,null,null,4]
["SI.Z4.","MI.HZ","X",null,null,null,null,4]
["SI.Z4.","MI.HZ",null,"X",null,null,null,4]
["SI.Z4.","MI.HZ",null,null,"X",null,null,4]
["SI.Z4.","MI.HZ",null,null,null,"X",null,4]
["SI.Z4.","MI.HZ","X","X",null,null,null,4]
["SI.Z4.","MI.HZ","X",null,"X",null,null,4]
["SI.Z4.","MI.HZ","X",null,null,"X",null,4]
["SI.Z4.","MI.HZ",null,"X","X",null,null,4]
["SI.Z4.","MI.HZ",null,"X",null,"X",null,4]
["SI.Z4.","MI.HZ",null,null,"X","X",null,4]
["SI.Z4.","MI.HZ","X","X","X",null,null,4]
["SI.Z4.","MI.HZ","X","X",null,"X",null,4]
["SI.Z4.","MI.HZ",null,"X","X","X",null,4]
["SI.Z4.","MI.HZ","X",null,"X","X",null,4]
["SI.Z4.","MI.HZ","X","X","X","X",null,4]
["SI.Z4.","SO.A40.MI",null,null,null,null,null,1]
["SI.Z4.","SO.A40.MI","X",null,null,null,null,1]
["SI.Z4.","SO.A40.MI",null,"X",null,null,null,1]
["SI.Z4.","SO.A40.MI","X","X",null,null,null,1]
["SI.Z4.","SO.I30",null,null,null,null,null,6]
["SI.Z4.","RS.A40.MI",null,null,null,null,null,1]
["SI.Z4.","RS.A40.MI","X",null,null,null,null,1]
["SI.Z4.","RS.A40.MI",null,"X",null,null,null,1]
["SI.Z4.","RS.A40.MI","X","X",null,null,null,1]
["SI.Z4.","RS.I30",null,null,null,null,null,6]
["SI.Z4.SR","MI.CO",null,null,null,null,null,1]
["SI.Z4.SR","MI.CO","X",null,null,null,null,1]
["SI.Z4.SR","MI.CO",null,"X",null,null,null,1]
["SI.Z4.SR","MI.CO","X","X",null,null,null,1]
["SI.Z4.SR","MI.HZ",null,null,null,null,null,5]
["SI.Z4.SR","MI.HZ","X",null,null,null,null,5]
["SI.Z4.SR","MI.HZ",null,"X",null,null,null,5]
["SI.Z4.SR","MI.HZ",null,null,"X",null,null,5]
["SI.Z4.SR","MI.HZ","X",null,"X",null,null,5]
["SI.Z4.SR","MI.HZ","X","X",null,null,null,5]
["SI.Z4.SR","MI.HZ",null,"X","X",null,null,5]
["SI.Z4.SR","MI.HZ","X","X","X",null,null,5]
[]
[]
[]
[]
["Zylinderprofil"]
[{"$f":"IF($F$3=\"Deutsch\",$A224,IF($F$3=\"English\",$B224,IF($F$3=\"Français\",$C224,IF($F$3=\"Italiano\",$D224,IF($F$3=\"Nederlands\",$E224,IF($F$3=\"Dansk\",$F224,\"\"))))))","v":"Europrofil"},"SI.Z4."]
[{"$f":"IF($F$3=\"Deutsch\",$A225,IF($F$3=\"English\",$B225,IF($F$3=\"Français\",$C225,IF($F$3=\"Italiano\",$D225,IF($F$3=\"Nederlands\",$E225,IF($F$3=\"Dansk\",$F225,\"\"))))))","v":"Swiss Round"},"SI.Z4.SR."]
[{"$f":"IF($F$3=\"Deutsch\",$A226,IF($F$3=\"English\",$B226,IF($F$3=\"Français\",$C226,IF($F$3=\"Italiano\",$D226,IF($F$3=\"Nederlands\",$E226,IF($F$3=\"Dansk\",$F226,\"\"))))))","v":"Scandinavian Oval"},"SI.Z4.SO."]
[{"$f":"IF($F$3=\"Deutsch\",$A227,IF($F$3=\"English\",$B227,IF($F$3=\"Français\",$C227,IF($F$3=\"Italiano\",$D227,IF($F$3=\"Nederlands\",$E227,IF($F$3=\"Dansk\",$F227,\"\"))))))","v":"Scandinavian Round"},"SI.Z4.RS."]
[]
[]
[]
[]
[]
["Variante",null,null,null,1,2,3]
["SI.Z4.","MI.CO",1,null,"MI.CO","MI.CO","A40.MI"]
["SI.Z4.","MI.FD",1,null,"MI.FD","MI.HZ","I30"]
["SI.Z4.","MI.AP2.FD",1,null,"MI.AP2.FD"]
["SI.Z4.","MI.AP2.BL",1,null,"MI.AP2.BL"]
["SI.Z4.","MI.HZ",1,null,"MI.HZ"]
["SI.Z4.SO.","A40.MI",3]
["SI.Z4.SO.","I30",3]
["SI.Z4.RS.","A40.MI",3]
["SI.Z4.RS.","I30",3]
["SI.Z4.SR.","MI.CO",2]
["SI.Z4.SR.","MI.HZ",2]
[]
[]
[]
[]
[]
[]
[]
[]
["Optionen",null,null,null,1,2,3,4,5,6]
["SI.Z4.",1,null,null," "," "," "," "," "," "]
["SI.Z4.SR.",2,null,null,".MS",".MS",".MR",".DK",".MR"]
["SI.Z4.SO.",1,null,null,".MS.WP",".MS.WP",".MR.MS",".MR",".MR.MS"]
["SI.Z4.RS.",1,null,null,".WP",".WP",".MR.WP",".MR.DK",".MR.WP"]
[null,null,null,null,null,null,".MR.MS.WP",".MR.MS",".MR.MS.WP"]
[null,null,null,null,null,null,".MS",".MR.WP",".MS"]
["MI.CO",0,null,null,null,null,".MS.WP",".MR.MS.DK",".MS.WP"]
["MI.FD",2,null,null,null,null,".WP",".MR.MS.WP",".WP"]
["MI.AP2.FD",0,null,null,null,null,null,".MR.WP.DK"]
["MI.AP2.BL",0,null,null,null,null,null,".MR.MS.WP.DK"]
["MI.HZ",3,null,null,null,null,null,".MS"]
["A40.MI",0,null,null,null,null,null,".MS.DK"]
["I30",6,null,null,null,null,null,".MS.WP"]
["A40.MI",0,null,null,null,null,null,".MS.WP.DK"]
["I30",6,null,null,null,null,null,".WP"]
[null,null,null,null,null,null,null,".WP.DK"]
["Zeile 19",{"$f":"VLOOKUP($C20,$A$134:$B$137,2,FALSE)+VLOOKUP($D20,$A$140:$B$148,2,FALSE)","v":{"$error":"#N/A"}}]
["Zeile 20",{"$error":"#N/A"}]
["Zeile 21",{"$error":"#N/A"}]
["Zeile 22",{"$error":"#N/A"}]
["Zeile 23",{"$error":"#N/A"}]
["Zeile 24",{"$error":"#N/A"}]
["Zeile 25",{"$error":"#N/A"}]
["Zeile 26",{"$f":"VLOOKUP(#REF!,$A$134:$B$137,2,FALSE)+VLOOKUP(#REF!,$A$140:$B$148,2,FALSE)","v":{"$error":"#REF!"}}]
["Zeile 27",{"$f":"VLOOKUP(#REF!,$A$134:$B$137,2,FALSE)+VLOOKUP(#REF!,$A$140:$B$148,2,FALSE)","v":{"$error":"#REF!"}}]
["Zeile 28",{"$f":"VLOOKUP(#REF!,$A$134:$B$137,2,FALSE)+VLOOKUP(#REF!,$A$140:$B$148,2,FALSE)","v":{"$error":"#REF!"}}]
["Zeile 29",{"$f":"VLOOKUP(#REF!,$A$134:$B$137,2,FALSE)+VLOOKUP(#REF!,$A$140:$B$148,2,FALSE)","v":{"$error":"#REF!"}}]
["Zeile 30",{"$f":"VLOOKUP(#REF!,$A$134:$B$137,2,FALSE)+VLOOKUP(#REF!,$A$140:$B$148,2,FALSE)","v":{"$error":"#REF!"}}]
[]
[]
[]
[null,"Außenlänge","Innenlänge",null,"Außenlänge"]
[null,null,null,null,1,2,3,4]
["MI.CO",1,1,null,"30-","35-"]
["MI.FD",1,2,null,"35-","40-"]
["MI.AP2.FD",1,1,null,"40-","45-"]
["MI.AP2.BL",1,1,null,"45-","50-"]
["MI.HZ",1,4,null,"50-","55-"]
["A40.MI",3,6,null,"55-","60-"]
["I30",3,6,null,"60-","65-"]
["A40.MI",3,6,null,"65-","70-"]
["I30",3,6,null,"70-","75-"]
["MI.CO",1,1,null,"75-","80-"]
[null,null,null,null,"80-","85-"]
[null,null,null,null,"85-","90-"]
[null,null,null,null,"90-"]
[".MS",0,0]
[".MS.WP",0,1]
[".WP",0,1,null,"Innenlänge"]
[".MR",1,0,null,1,2,3,4,5,6,7]
[".MR.MS",1,0,null,"30.","30.","35.","10.","10."]
[".MR.WP",1,1,null,"35.","35.","40."]
[".MR.MS.WP",0,1,null,"40.","40.","45."]
[" ",0,0,null,"45.","45.","50."]
[".DK",0,0,null,"50.","50.","55."]
[".MR.DK",1,0,null,"55.","55.","60."]
[".MR.MS.DK",1,0,null,"60.","60.","65."]
[".MR.WP.DK",1,0,null,"65.","65.","70."]
[".MR.MS.WP.DK",1,1,null,"70.","70.","75."]
[".MS.DK",0,0,null,"75.","75.","80."]
[".MS.WP.DK",0,1,null,"80.","80.","85."]
[".WP.DK",0,1,null,"85.","85.","90."]
[null,null,null,null,"90.","90."]
["Zeile 20",{"$f":"VLOOKUP($D20,$A$167:$B$177,2,FALSE)+VLOOKUP($E20,$A$180:$B$195,2,FALSE)","v":{"$error":"#N/A"}},{"$f":"VLOOKUP($D20,$A$167:$C$176,3,FALSE)+VLOOKUP($E20,$A$180:$C$195,3,FALSE)","v":{"$error":"#N/A"}}]
["Zeile 21",{"$error":"#N/A"},{"$f":"VLOOKUP($D21,$A$164:$C$174,3,FALSE)+VLOOKUP($E21,$A$177:$C$192,3,FALSE)","v":{"$error":"#N/A"}}]
["Zeile 22",{"$error":"#N/A"},{"$error":"#N/A"}]
["Zeile 23",{"$error":"#N/A"},{"$error":"#N/A"}]
["Zeile 24",{"$error":"#N/A"},{"$error":"#N/A"}]
["Zeile 25",{"$error":"#N/A"},{"$error":"#N/A"}]
["Zeile 26",{"$error":"#N/A"},{"$error":"#N/A"}]
[]
[]
[]
["Î","P"]
[]
[null,null,null,null,null,null,"Menge","Programmierung"]
["Deutsch","English","Français","Italiano","Nederlands","Dansk",1,{"$f":"IF($F$3=\"Deutsch\",$A$241,IF($F$3=\"English\",$B$241,IF($F$3=\"Français\",$C$241,IF($F$3=\"Italiano\",$D$241,IF($F$3=\"Nederlands\",$E$241,\"\")))))","v":"Bemerkungen"},"SI.SMARTCD"]
["Anzahl","Quantity","Quantité","Quantità","Aantal","Antal",2,{"$f":"IF($F$3=\"Deutsch\",$A$242,IF($F$3=\"English\",$B$242,IF($F$3=\"Français\",$C$242,IF($F$3=\"Italiano\",$D$242,IF($F$3=\"Nederlands\",$E$242,\"\")))))","v":"http://www.smartintego.com/de/home/infocenter/downloads/"},"SI.SW"]
["Profil","Lock Code","Profil","Codice del profilo","Sluiting code","Låsecylinder type / varenummer",3]
["Variante","Variant",null,null,null,"Variant",4,"Gateway Nodes"]
["Optionen","Options","Options","Opzioni","Opties","Valgmuligheder",5,{"$f":"IF($F$3=\"Deutsch\",$A$246,IF($F$3=\"English\",$B$246,IF($F$3=\"Français\",$C$246,IF($F$3=\"Italiano\",$D$246,IF($F$3=\"Nederlands\",$E$246,\"\")))))","v":0},"SI.GN.CR"]
["Außenlänge","Outside Length",null,null,null,"Udvendig længde",6,{"$f":"IF($F$3=\"Deutsch\",$A247,IF($F$3=\"English\",$B247,IF($F$3=\"Français\",$C247,IF($F$3=\"Italiano\",$D247,IF($F$3=\"Nederlands\",$E247,\"\")))))","v":0},"SI.GN.ER"]
["Innenlänge","Inside Length",null,null,null,"Indvendig længde",7,{"$f":"IF($F$3=\"Deutsch\",$A$248,IF($F$3=\"English\",$B$248,IF($F$3=\"Français\",$C$248,IF($F$3=\"Italiano\",$D$248,IF($F$3=\"Nederlands\",$E$248,\"\")))))","v":0},"SI.GN.R"]
["kpl. Artikelnummer","Complete Part Number","Code article complet","Numero articolo completo","Complete onderdeel nummer","Komplet varenummer",8]
["Kundennummer","Customer No.","Numéro de client","Cliente numero","Klantnr.","Kundenummer",9]
["Kundenname","Customer Name","Nom du client","Nome cliente","Klant naam","Kundenavn",10]
["Projekt-Nr.  ","Project No.","Numéro de projet","Progetto numero","Projectnr.","Projektnummer",11]
["Projekt-Name  ","Project Name","Nom du projet","Nome progetto","Project naam","Projektnavn",12]
["Anlage zu Bestellnummer  ","Attachment to Order No.","Pièce(s) jointe(s) à la commande","Allegato all'ordine","Bijlage bij ordernr.","Tillæg til ordrenummer",13]
["Bestellhilfe Digitale Schließzylinder","Ordering Guide Digital Cylinders","Guide de commande pour cylindres","Guida all'ordinazione di Cilindri di chiusura","Bestelhulp Digitale Cilinders","Bestillingsvejledning til digitale låsecylindre",14]
["Europrofil","Europrofile","profil européen","profilo europeo","Euro profiel","Europrofil",15]
["Swiss Round","Swiss Round","profil suisse","tondo svizzero","Swiss Round","Schweizisk Rund",16]
["Scandinavian Oval","Scandinavian Oval","Ovale scandinave","Scandinavian Oval","Scandinavian Oval","Skandinavisk Oval",17]
["Scandinavian Round","Scandinavian Round","Scandinavian Round","Scandinavian Round","Scandinavian Round","Skandinavisk Rund",18]
["Artikelnummer korrekt?","Part Number Correct?","Code article correct?","Numero articolo giusto?","onderdeel nummer juist?","Korrekt varenummer?",19]
["Download Bestellhilfe","Download of the ordering guide","Téléchargement Guide de commande","Scaricamento del Guida all'ordinazione di Smart Handle","Download Bestelhulp Digitale SmartHandle","Download bestillingsvejledning",20]
["*** Bitte Makros aktivieren ***","*** Please enable macros ***","*** S'il vous plaît activer les macros ***","*** Si prega di abilitare le macro ***","*** Schakel macro's ***","*** Aktiver venligst makroer ***",21]
["    Maßangaben in mm","    measurements indicated in mm","    dimensions en mm","    Misure in mm","    Afmetingen in mm","Mål angives i mm",22]
["                Außenlänge","              outside length","               côté extérieur","              Lato esterno","                 Butenkant","Udvendig længde",23]
["Innenlänge","inside length","côté interieur","Lato interno","Binnenkant","Indvendig længde",24]
["zum Produkt","about the product","voir le produit","vai al prodotto","product bekijken","om produktet:",25]
["http://www.smartintego.com/de/home/produkte/digitaler-schliesszylinder-si/","http://www.smartintego.com/int/home/products/digital-locking-cylinder-si/","http://www.smartintego.com/int/home/products/digital-locking-cylinder-si/","http://www.smartintego.com/int/home/products/digital-locking-cylinder-si/","http://www.smartintego.com/int/home/products/digital-locking-cylinder-si/","http://www.smartintego.com/int/home/products/digital-locking-cylinder-si/",26]
["Digitale Schließzylinder SI","Digital Locking Cylinder SI","Digital Locking Cylinder SI","Digital Locking Cylinder SI","Digital Locking Cylinder SI","Digital Låsecylinder SI (engelsk)",27]
["http://www.smartintego.com/fileadmin/SmartIntego/PDFs/Produktkatalog_SmartIntego_DE.pdf","http://www.smartintego.com/fileadmin/SmartIntego/PDFs/Productcatalogue%20_SmartIntego_EN.pdf","http://www.smartintego.com/fileadmin/SmartIntego/PDFs/Productcatalogue%20_SmartIntego_EN.pdf","http://www.smartintego.com/fileadmin/SmartIntego/PDFs/Productcatalogue%20_SmartIntego_EN.pdf","http://www.smartintego.com/fileadmin/SmartIntego/PDFs/Productcatalogue%20_SmartIntego_EN.pdf","http://www.smartintego.com/fileadmin/SmartIntego/PDFs/Productcatalogue%20_SmartIntego_EN.pdf",28]
["Produktkatalog SmartIntego","Product Catalogue SmartIntego","Product Catalogue SmartIntego","Product Catalogue SmartIntego","Product Catalogue SmartIntego","Produktkatalog SmartIntego (engelsk)",29]
["http://www.smartintego.com/fileadmin/SmartIntego/PDFs/Broschuere_SmartIntego_DE.pdf","http://www.smartintego.com/fileadmin/SmartIntego/PDFs/Brochure_SmartIntego_UK.pdf","http://www.smartintego.com/fileadmin/SmartIntego/PDFs/Brochure_SmartIntego_UK.pdf","http://www.smartintego.com/fileadmin/SmartIntego/PDFs/Brochure_SmartIntego_UK.pdf","http://www.smartintego.com/fileadmin/SmartIntego/PDFs/Brochure_SmartIntego_UK.pdf","http://www.smartintego.com/fileadmin/SmartIntego/PDFs/Brochure_SmartIntego_UK.pdf",30]
["Broschüre SmartIntego","Brochure SmartIntego","Brochure SmartIntego","Brochure SmartIntego","Brochure SmartIntego","Brochure SmartIntego (engelsk)",31]
["Bemerkungen","Comments","Remarque","Note","Beperkingen","Bemærkninger",32]
["http://www.smartintego.com/de/home/infocenter/downloads/","http://www.smartintego.com/int/home/infocenter/downloads/","http://www.smartintego.com/int/home/infocenter/downloads/","http://www.smartintego.com/int/home/infocenter/downloads/","http://www.smartintego.com/int/home/infocenter/downloads/","http://www.smartintego.com/int/home/infocenter/downloads/",33]
[null,null,null,null,null,null,34]
[null,null,null,null,null,null,35]
[null,null,null,null,null,null,36]
[null,null,null,null,null,null,37]
[null,null,null,null,null,null,38]
[null,null,null,null,null,null,39]
[null,null,null,null,null,null,40]
[null,null,null,null,null,null,41]
[null,null,null,null,null,null,42]
[null,null,null,null,null,null,43]
[null,null,null,null,null,null,44]
[null,null,null,null,null,null,45]
[null,null,null,null,null,null,46]
[null,null,null,null,null,null,47]
[null,null,null,null,null,null,48]
[null,null,null,null,null,null,49]
[null,null,null,null,null,null,50]
[null,null,null,null,null,null,51]
[null,null,null,null,null,null,52]
[null,null,null,null,null,null,53]
[null,null,null,null,null,null,54]
[null,null,null,null,null,null,55]
[null,null,null,null,null,null,56]
[null,null,null,null,null,null,57]
[null,null,null,null,null,null,58]
[null,null,null,null,null,null,59]
[null,null,null,null,null,null,60]
[null,null,null,null,null,null,61]
[null,null,null,null,null,null,62]
[null,null,null,null,null,null,63]
[null,null,null,null,null,null,64]
[null,null,null,null,null,null,65]
[null,null,null,null,null,null,66]
[null,null,null,null,null,null,67]
[null,null,null,null,null,null,68]
[null,null,null,null,null,null,69]
[null,null,null,null,null,null,70]
[null,null,null,null,null,null,71]
[null,null,null,null,null,null,72]
[null,null,null,null,null,null,73]
[null,null,null,null,null,null,74]
[null,null,null,null,null,null,75]
[null,null,null,null,null,null,76]
[null,null,null,null,null,null,77]
[null,null,null,null,null,null,78]
[null,null,null,null,null,null,79]
[null,null,null,null,null,null,80]
[null,null,null,null,null,null,81]
[null,null,null,null,null,null,82]
[null,null,null,null,null,null,83]
[null,null,null,null,null,null,84]
[null,null,null,null,null,null,85]
[null,null,null,null,null,null,86]
[null,null,null,null,null,null,87]
[null,null,null,null,null,null,88]
[null,null,null,null,null,null,89]
[null,null,null,null,null,null,90]
[null,null,null,null,null,null,91]
[null,null,null,null,null,null,92]
[null,null,null,null,null,null,93]
[null,null,null,null,null,null,94]
[null,null,null,null,null,null,95]
[null,null,null,null,null,null,96]
[null,null,null,null,null,null,97]
[null,null,null,null,null,null,98]
[null,null,null,null,null,null,99]
[null,null,null,null,null,null,100]
[null,null,null,null,null,null,101]
[null,null,null,null,null,null,102]
[null,null,null,null,null,null,103]
[null,null,null,null,null,null,104]
[null,null,null,null,null,null,105]
[null,null,null,null,null,null,106]
[null,null,null,null,null,null,107]
[null,null,null,null,null,null,108]
[null,null,null,null,null,null,109]
[null,null,null,null,null,null,110]
[null,null,null,null,null,null,111]
[null,null,null,null,null,null,112]
[null,null,null,null,null,null,113]
[null,null,null,null,null,null,114]
[null,null,null,null,null,null,115]
[null,null,null,null,null,null,116]
[null,null,null,null,null,null,117]
[null,null,null,null,null,null,118]
[null,null,null,null,null,null,119]
[null,null,null,null,null,null,120]
[null,null,null,null,null,null,121]
[null,null,null,null,null,null,122]
[null,null,null,null,null,null,123]
[null,null,null,null,null,null,124]
[null,null,null,null,null,null,125]
[null,null,null,null,null,null,126]
[null,null,null,null,null,null,127]
[null,null,null,null,null,null,128]
[null,null,null,null,null,null,129]
[null,null,null,null,null,null,130]
[null,null,null,null,null,null,131]
[null,null,null,null,null,null,132]
[null,null,null,null,null,null,133]
[null,null,null,null,null,null,134]
[null,null,null,null,null,null,135]
[null,null,null,null,null,null,136]
[null,null,null,null,null,null,137]
[null,null,null,null,null,null,138]
[null,null,null,null,null,null,139]
[null,null,null,null,null,null,140]
[null,null,null,null,null,null,141]
[null,null,null,null,null,null,142]
[null,null,null,null,null,null,143]
[null,null,null,null,null,null,144]
[null,null,null,null,null,null,145]
[null,null,null,null,null,null,146]
[null,null,null,null,null,null,147]
[null,null,null,null,null,null,148]
[null,null,null,null,null,null,149]
[null,null,null,null,null,null,150]
[null,null,null,null,null,null,151]
[null,null,null,null,null,null,152]
[null,null,null,null,null,null,153]
[null,null,null,null,null,null,154]
[null,null,null,null,null,null,155]
[null,null,null,null,null,null,156]
[null,null,null,null,null,null,157]
[null,null,null,null,null,null,158]
[null,null,null,null,null,null,159]
[null,null,null,null,null,null,160]
[null,null,null,null,null,null,161]
[null,null,null,null,null,null,162]
[null,null,null,null,null,null,163]
[null,null,null,null,null,null,164]
[null,null,null,null,null,null,165]
[null,null,null,null,null,null,166]
[null,null,null,null,null,null,167]
[null,null,null,null,null,null,168]
[null,null,null,null,null,null,169]
[null,null,null,null,null,null,170]
[null,null,null,null,null,null,171]
[null,null,null,null,null,null,172]
[null,null,null,null,null,null,173]
[null,null,null,null,null,null,174]
[null,null,null,null,null,null,175]
[null,null,null,null,null,null,176]
[null,null,null,null,null,null,177]
[null,null,null,null,null,null,178]
[null,null,null,null,null,null,179]
[null,null,null,null,null,null,180]
[null,null,null,null,null,null,181]
[null,null,null,null,null,null,182]
[null,null,null,null,null,null,183]
[null,null,null,null,null,null,184]
[null,null,null,null,null,null,185]
[null,null,null,null,null,null,186]
[null,null,null,null,null,null,187]
[null,null,null,null,null,null,188]
[null,null,null,null,null,null,189]
[null,null,null,null,null,null,190]
[null,null,null,null,null,null,191]
[null,null,null,null,null,null,192]
[null,null,null,null,null,null,193]
[null,null,null,null,null,null,194]
[null,null,null,null,null,null,195]
[null,null,null,null,null,null,196]
[null,null,null,null,null,null,197]
[null,null,null,null,null,null,198]
[null,null,null,null,null,null,199]
[null,null,null,null,null,null,200]
[null,null,null,null,null,null,201]
[null,null,null,null,null,null,202]
[null,null,null,null,null,null,203]
[null,null,null,null,null,null,204]
[null,null,null,null,null,null,205]
[null,null,null,null,null,null,206]
[null,null,null,null,null,null,207]
[null,null,null,null,null,null,208]
[null,null,null,null,null,null,209]
[null,null,null,null,null,null,210]
[null,null,null,null,null,null,211]
[null,null,null,null,null,null,212]
[null,null,null,null,null,null,213]
[null,null,null,null,null,null,214]
[null,null,null,null,null,null,215]
[null,null,null,null,null,null,216]
[null,null,null,null,null,null,217]
[null,null,null,null,null,null,218]
[null,null,null,null,null,null,219]
[null,null,null,null,null,null,220]
[null,null,null,null,null,null,221]
[null,null,null,null,null,null,222]
[null,null,null,null,null,null,223]
[null,null,null,null,null,null,224]
[null,null,null,null,null,null,225]
[null,null,null,null,null,null,226]
[null,null,null,null,null,null,227]
[null,null,null,null,null,null,228]
[null,null,null,null,null,null,229]
[null,null,null,null,null,null,230]
[null,null,null,null,null,null,231]
[null,null,null,null,null,null,232]
[null,null,null,null,null,null,233]
[null,null,null,null,null,null,234]
[null,null,null,null,null,null,235]
[null,null,null,null,null,null,236]
[null,null,null,null,null,null,237]
[null,null,null,null,null,null,238]
[null,null,null,null,null,null,239]
[null,null,null,null,null,null,240]
[null,null,null,null,null,null,241]
[null,null,null,null,null,null,242]
[null,null,null,null,null,null,243]
[null,null,null,null,null,null,244]
[null,null,null,null,null,null,245]
[null,null,null,null,null,null,246]
[null,null,null,null,null,null,247]
[null,null,null,null,null,null,248]
[null,null,null,null,null,null,249]
[null,null,null,null,null,null,250]
[null,null,null,null,null,null,251]
[null,null,null,null,null,null,252]
[null,null,null,null,null,null,253]
[null,null,null,null,null,null,254]
[null,null,null,null,null,null,255]
[null,null,null,null,null,null,256]
[null,null,null,null,null,null,257]
[null,null,null,null,null,null,258]
[null,null,null,null,null,null,259]
[null,null,null,null,null,null,260]
[null,null,null,null,null,null,261]
[null,null,null,null,null,null,262]
[null,null,null,null,null,null,263]
[null,null,null,null,null,null,264]
[null,null,null,null,null,null,265]
[null,null,null,null,null,null,266]
[null,null,null,null,null,null,267]
[null,null,null,null,null,null,268]
[null,null,null,null,null,null,269]
[null,null,null,null,null,null,270]
[null,null,null,null,null,null,271]
[null,null,null,null,null,null,272]
[null,null,null,null,null,null,273]
[null,null,null,null,null,null,274]
[null,null,null,null,null,null,275]
[null,null,null,null,null,null,276]
[null,null,null,null,null,null,277]
[null,null,null,null,null,null,278]
[null,null,null,null,null,null,279]
[null,null,null,null,null,null,280]
[null,null,null,null,null,null,281]
[null,null,null,null,null,null,282]
[null,null,null,null,null,null,283]
[null,null,null,null,null,null,284]
[null,null,null,null,null,null,285]
[null,null,null,null,null,null,286]
[null,null,null,null,null,null,287]
[null,null,null,null,null,null,288]
[null,null,null,null,null,null,289]
[null,null,null,null,null,null,290]
[null,null,null,null,null,null,291]
[null,null,null,null,null,null,292]
[null,null,null,null,null,null,293]
[null,null,null,null,null,null,294]
[null,null,null,null,null,null,295]
[null,null,null,null,null,null,296]
[null,null,null,null,null,null,297]
[null,null,null,null,null,null,298]
[null,null,null,null,null,null,299]
[null,null,null,null,null,null,300]
[null,null,null,null,null,null,301]
[null,null,null,null,null,null,302]
[null,null,null,null,null,null,303]
[null,null,null,null,null,null,304]
[null,null,null,null,null,null,305]
[null,null,null,null,null,null,306]
[null,null,null,null,null,null,307]
[null,null,null,null,null,null,308]
[null,null,null,null,null,null,309]
[null,null,null,null,null,null,310]
[null,null,null,null,null,null,311]
[null,null,null,null,null,null,312]
[null,null,null,null,null,null,313]
[null,null,null,null,null,null,314]
[null,null,null,null,null,null,315]
[null,null,null,null,null,null,316]
[null,null,null,null,null,null,317]
[null,null,null,null,null,null,318]
[null,null,null,null,null,null,319]
[null,null,null,null,null,null,320]
[null,null,null,null,null,null,321]
[null,null,null,null,null,null,322]
[null,null,null,null,null,null,323]
[null,null,null,null,null,null,324]
[null,null,null,null,null,null,325]
[null,null,null,null,null,null,326]
[null,null,null,null,null,null,327]
[null,null,null,null,null,null,328]
[null,null,null,null,null,null,329]
[null,null,null,null,null,null,330]
[null,null,null,null,null,null,331]
[null,null,null,null,null,null,332]
[null,null,null,null,null,null,333]
[null,null,null,null,null,null,334]
[null,null,null,null,null,null,335]
[null,null,null,null,null,null,336]
[null,null,null,null,null,null,337]
[null,null,null,null,null,null,338]
[null,null,null,null,null,null,339]
[null,null,null,null,null,null,340]
[null,null,null,null,null,null,341]
[null,null,null,null,null,null,342]
[null,null,null,null,null,null,343]
[null,null,null,null,null,null,344]
[null,null,null,null,null,null,345]
[null,null,null,null,null,null,346]
[null,null,null,null,null,null,347]
[null,null,null,null,null,null,348]
[null,null,null,null,null,null,349]
[null,null,null,null,null,null,350]
[null,null,null,null,null,null,351]
[null,null,null,null,null,null,352]
[null,null,null,null,null,null,353]
[null,null,null,null,null,null,354]
[null,null,null,null,null,null,355]
[null,null,null,null,null,null,356]
[null,null,null,null,null,null,357]
[null,null,null,null,null,null,358]
[null,null,null,null,null,null,359]
[null,null,null,null,null,null,360]
[null,null,null,null,null,null,361]
[null,null,null,null,null,null,362]
[null,null,null,null,null,null,363]
[null,null,null,null,null,null,364]
[null,null,null,null,null,null,365]
[null,null,null,null,null,null,366]
[null,null,null,null,null,null,367]
[null,null,null,null,null,null,368]
[null,null,null,null,null,null,369]
[null,null,null,null,null,null,370]
[null,null,null,null,null,null,371]
[null,null,null,null,null,null,372]
[null,null,null,null,null,null,373]
[null,null,null,null,null,null,374]
[null,null,null,null,null,null,375]
[null,null,null,null,null,null,376]
[null,null,null,null,null,null,377]
[null,null,null,null,null,null,378]
[null,null,null,null,null,null,379]
[null,null,null,null,null,null,380]
[null,null,null,null,null,null,381]
[null,null,null,null,null,null,382]
[null,null,null,null,null,null,383]
[null,null,null,null,null,null,384]
[null,null,null,null,null,null,385]
[null,null,null,null,null,null,386]
[null,null,null,null,null,null,387]
[null,null,null,null,null,null,388]
[null,null,null,null,null,null,389]
[null,null,null,null,null,null,390]
[null,null,null,null,null,null,391]
[null,null,null,null,null,null,392]
[null,null,null,null,null,null,393]
[null,null,null,null,null,null,394]
[null,null,null,null,null,null,395]
[null,null,null,null,null,null,396]
[null,null,null,null,null,null,397]
[null,null,null,null,null,null,398]
[null,null,null,null,null,null,399]
[null,null,null,null,null,null,400]
[null,null,null,null,null,null,401]
[null,null,null,null,null,null,402]
[null,null,null,null,null,null,403]
[null,null,null,null,null,null,404]
[null,null,null,null,null,null,405]
[null,null,null,null,null,null,406]
[null,null,null,null,null,null,407]
[null,null,null,null,null,null,408]
[null,null,null,null,null,null,409]
[null,null,null,null,null,null,410]
[null,null,null,null,null,null,411]
[null,null,null,null,null,null,412]
[null,null,null,null,null,null,413]
[null,null,null,null,null,null,414]
[null,null,null,null,null,null,415]
[null,null,null,null,null,null,416]
[null,null,null,null,null,null,417]
[null,null,null,null,null,null,418]
[null,null,null,null,null,null,419]
[null,null,null,null,null,null,420]
[null,null,null,null,null,null,421]
[null,null,null,null,null,null,422]
[null,null,null,null,null,null,423]
[null,null,null,null,null,null,424]
[null,null,null,null,null,null,425]
[null,null,null,null,null,null,426]
[null,null,null,null,null,null,427]
[null,null,null,null,null,null,428]
[null,null,null,null,null,null,429]
[null,null,null,null,null,null,430]
[null,null,null,null,null,null,431]
[null,null,null,null,null,null,432]
[null,null,null,null,null,null,433]
[null,null,null,null,null,null,434]
[null,null,null,null,null,null,435]
[null,null,null,null,null,null,436]
[null,null,null,null,null,null,437]
[null,null,null,null,null,null,438]
[null,null,null,null,null,null,439]
[null,null,null,null,null,null,440]
[null,null,null,null,null,null,441]
[null,null,null,null,null,null,442]
[null,null,null,null,null,null,443]
[null,null,null,null,null,null,444]
[null,null,null,null,null,null,445]
[null,null,null,null,null,null,446]
[null,null,null,null,null,null,447]
[null,null,null,null,null,null,448]
[null,null,null,null,null,null,449]
[null,null,null,null,null,null,450]
[null,null,null,null,null,null,451]
[null,null,null,null,null,null,452]
[null,null,null,null,null,null,453]
[null,null,null,null,null,null,454]
[null,null,null,null,null,null,455]
[null,null,null,null,null,null,456]
[null,null,null,null,null,null,457]
[null,null,null,null,null,null,458]
[null,null,null,null,null,null,459]
[null,null,null,null,null,null,460]
[null,null,null,null,null,null,461]
[null,null,null,null,null,null,462]
[null,null,null,null,null,null,463]
[null,null,null,null,null,null,464]
[null,null,null,null,null,null,465]
[null,null,null,null,null,null,466]
[null,null,null,null,null,null,467]
[null,null,null,null,null,null,468]
[null,null,null,null,null,null,469]
[null,null,null,null,null,null,470]
[null,null,null,null,null,null,471]
[null,null,null,null,null,null,472]
[null,null,null,null,null,null,473]
[null,null,null,null,null,null,474]
[null,null,null,null,null,null,475]
[null,null,null,null,null,null,476]
[null,null,null,null,null,null,477]
[null,null,null,null,null,null,478]
[null,null,null,null,null,null,479]
[null,null,null,null,null,null,480]
[null,null,null,null,null,null,481]
[null,null,null,null,null,null,482]
[null,null,null,null,null,null,483]
[null,null,null,null,null,null,484]
[null,null,null,null,null,null,485]
[null,null,null,null,null,null,486]
[null,null,null,null,null,null,487]
[null,null,null,null,null,null,488]
[null,null,null,null,null,null,489]
[null,null,null,null,null,null,490]
[null,null,null,null,null,null,491]
[null,null,null,null,null,null,492]
[null,null,null,null,null,null,493]
[null,null,null,null,null,null,494]
[null,null,null,null,null,null,495]
[null,null,null,null,null,null,496]
[null,null,null,null,null,null,497]
[null,null,null,null,null,null,498]
[null,null,null,null,null,null,499]
[null,null,null,null,null,null,500]

{"sheet":"Comments","index":2,"n_rows":23,"n_cols":7,"rows_kept":23,"cut":false,"hidden":true,"merged":[]}
["Sprache","Deutsch","English","Francais","Italiano","Nederlands","Dansk"]
["Profilname","Europrofil ohne MO\nSwiss Round ohne MO\nScandinavian Oval ohne MO\nEuroprofil mit MO\nSwiss Round mit MO\nScandinavian Oval mit MO","Europrofile without Mechanical Override (MO)\nSwiss Round without Mechanical Override (MO)\nScandinavian Oval without Mechanical Override (MO)\nEuroprofil with Mechanical Override (MO)\nSwiss Round with Mechanical Override (MO)\nScandinavian Oval with Mechanical Override (MO)","Profil européen sans verrouillage mécanique\nProfil suisse sans verrouillage mécanique\nOvale scandinave sans verrouillage mécanique\nprofil européen avec Verrouillage mécanique (VM),     \nprofil suisse avec Verrouillage mécanique (VM)\nOvale scandinave avec Verrouillage mécanique (VM)","profilo europeo senza Mechanical Override (MO)\ntondo svizzero senza Mechanical Override (MO)\nBritish Oval senza Mechanical Override (MO)\nScandinavian Oval senza Mechanical Override (MO)\nprofilo europeo con mechanical override (MO)\ntondo svizzero con mechanical override (MO)\nScandinavian Oval con Mechanical Override (MO)","Euro profiel zonder Mechanical Override (MO)\nSwiss Round zonder Mechanical Override (MO)\nScandinavian Oval zonder Mechanical Override (MO)\nEuro profiel met mechanical Override (MO)\nSwiss round met mechanical Override (MO)\nScandinavian Oval met Mechanical Override (MO)","Europrofil uden udstandsning til låsecylinder\nSchweizisk Rund uden udstandsning til låsecylinder\nSkandinavisk Oval uden udstandsning til låsecylinder\nSchweizisk Rund med udstandsning til låsecylinder\nEuroprofil med udstandsning til låsecylinder\nSkandinavisk Oval med udstandsning til låsecylinder"]
["Profil","A = \nEuroprofil, \nSwiss Round,\n\nB =\nScandinavian Oval\n\nC =\nEuroprofil mit Mechanical Override (MO)\n\nD =\nSwiss Round mit Mechanical Override (MO)\n\nE =\nScandinavian Oval mit Mechanical Override (MO)","A = \nEuroprofile, \nSwiss Round,\n\nB =\nScandinavian Oval\n\nC =\nEuroprofile with Mechanical Override (MO)\n\nD =\nSwiss Round with Mechanical Override (MO)\n\nE =\nScandinavian Oval with Mechanical Override (MO)","A = \nprofil européen, \nprofil suisse,\n\nB =\nOvale scandinave\n\nC =\nprofil européen avec Verrouillage mécanique (VM)\n\nD =\nprofil suisse avec Verrouillage mécanique (VM)\n\nE =\nOvale scandinave avec verrouillage mécanique (VM)","A = \nprofilo europeo, \ntondo svizzero,\n\nB =\nScandinavian Oval\n\nC =\nprofilo europeo con mechanical override (MO)\n\nD =\ntondo svizzero con mechanical override (MO)\n\nE =\nScandinavian Oval con Mechanical Override (MO)","A = \nEuro profiel, \nSwiss Round,\n\nB =\nScandinavian Oval\n\nC =\nEuro profiel met mechanical Override (MO)\n\nD =\nSwiss Round met mechanical Override (MO)\n\nE =\nScandinavian Oval met Mechanical Override (MO)","A = \nEuroprofil, \nSchweizisk Rund,\n\nB =\nSkandinavisk Oval\n\nC =\nEuroprofil med udstandsning til låsecylinder\n\nD =\nSchweizisk Rund med udstandsning til låsecylinder\n\nE =\nSkandinavisk Oval med udstandsning til låsecylinder"]
["Türdicke","Für PZ-Profil / Swiss Round:\nS = 39-60 mm\nM = 59-80 mm\nL = 79-100 mm\n\nfür Scandinavian Oval Profil:\nS = 33-50 mm\nM = 49-70 mm\nL = 69-94 mm","for Europrofile / Swiss Round:\nS = 39-60 mm\nM = 59-80 mm\nL = 79-100 mm\n\nfor SO lock type:\nS = 33-50 mm\nM = 49-70 mm\nL = 69-94 mm","pour type de profil européen / profil suisse:\nS = 39-60 mm\nM = 59-80 mm\nL = 79-100 mm\n\npour type de serrure SO (Ovale scandinave):\nS = 33-50 mm\nM = 49-70 mm\nL = 69-94 mm","for profilo europeo:\nS = 39-60 mm\nM = 59-80 mm\nL = 79-100 mm\n\nfor Scandinavian Oval profilo:\nS = 33-50 mm\nM = 49-70 mm\nL = 69-94 mm","voor Euro profiel / Swiss Round:\nS = 39-60 mm\nM = 59-80 mm\nL = 79-100 mm\n\nvoor Scandinavian Oval profiel:\nS = 33-50 mm\nM = 49-70 mm\nL = 69-94 mm","til Europrofil / Schweizisk Rund:\nS = 39-60 mm\nM = 59-80 mm\nL = 79-100 mm\n\ntil Skandinavisk Oval:\nS = 33-50 mm\nM = 49-70 mm\nL = 69-94 mm"]
["Vierkant","07 = 7 mm\n08 = 8 mm\nF8 = 8 mm (feuerhemmend, nur für Europrofil)\n09 = 9 mm\n10 = 10 mm","07 = 7 mm\n08 = 8 mm\nF8 = 8 mm (Fire-retardant,for Europrofile only)\n09 = 9 mm\n10 = 10 mm","07 = 7 mm\n08 = 8 mm\nF8 = 8 mm (coupe-feu, seulement pour profil européen)\n09 = 9 mm\n10 = 10 mm","07 = 7 mm\n08 = 8 mm\nF8 = 8 mm (Versione ignifuga, solo per profilo europeo)\n09 = 9 mm\n10 = 10 mm","07 = 7 mm\n08 = 8 mm\nF8 = 8 mm (Brandwerende versie, alleen voor Euro profiel)\n09 = 9 mm\n10 = 10 mm","07 = 7 mm\n08 = 8 mm\nF8 = 8 mm (Brandhæmmende, kun for Europrofil)\n09 = 9 mm\n10 = 10 mm"]
["Befestigung","A = SnapIn schmal (41mm)\nB = SnapIn breit (53mm)\nC = Konvent. Befestigung schmal (41mm)\nD = Konvent. Befestigung breit (53mm)\nE = Konvent. Befestigung MO - innen und außen Ausschnitt - schmal (41mm)\nF = Konvent. Befestigung MO - innen und außen Ausschnitt - breit (53mm)\nG = Konvent. Befestigung MO - innen blind, außen Ausschnitt - schmal (41mm)\nH = Konvent. Befestigung MO - innen blind, außen Ausschnitt - breit (53mm)\nI = Konvent. Befestigung MO - innen Ausschnitt, außen blind - schmal (41mm)\nJ = Konvent. Befestigung MO - innen Ausschnitt, außen blind - breit (53mm)\nK = Konvent. Befestigung MO - innen und außen blind - schmal (41mm)\nL = Konvent. Befestigung MO - innen und außen blind - breit (53mm)","A = SnapIn narrow (41mm)\nB = SnapIn wide (53mm)\nC = Conventional Fastening Narrow (41mm)\nD = Conventional Fastening Wide (53mm)\nE = Conventional Fastening MO - inside and outside cylinder recess - narrow (41mm)\nF = Conventional Fastening MO - inside and outside cylinder recess - wide (53mm)\nG = Conventional Fastening MO - inside blind, outside cylinder recess - narrow (41mm)\nH = Conventional Fastening MO - inside blind, outside cylinder recess - wide (53mm)\nI = Conventional Fastening MO - inside cylinder recess, outside blind - narrow (41mm)\nJ = Conventional Fastening MO - inside cylinder recess, outside blind - wide (53mm)\nK = Conventional Fastening MO - inside and outside blind - narrow (41mm)\nL = Conventional Fastening MO - inside and outside blind - wide (53mm)","A = SnapIn / étroit (41 mm)\nB = SnapIn / large (53 mm)\nC = Fixation conventionnelle / étroit (41 mm)\nD = Fixation conventionnelle / large (53 mm)\nE = Fixation conventionnelle VM – perçage à l’intérieur et à l’extérieur / étroit (41 mm)\nF = Fixation conventionnelle VM – perçage à l’intérieur et à l’extérieur / large (53 mm)\nG = Fixation conventionnelle VM – aucun perçage à l’intérieur/perçage à l’extérieur / étroit (41 mm)  \nH = Fixation conventionnelle VM – aucun perçage à l’intérieur/perçage à l’extérieur / large (53 mm)\nI = Fixation conventionnelle VM – perçage à l’intérieur/aucun perçage à l’extérieur / étroit (41 mm) \nJ = Fixation conventionnelle VM – perçage à l’intérieur/aucun perçage à l’extérieur / large (53 mm)\nK = Fixation conventionnelle VM – aucun perçage à l’intérieur et à l’extérieur / étroit (41 mm)  \nL = Fixation conventionnelle VM – aucun perçage à l’intérieur et à l’extérieur / large (53 mm)","A=SnapIn coprimaniglia stretto (41 mm)\nB=SnapIn coprimaniglia largo (53 mm)\nC = Fissaggio convenzionale coprimaniglia stretto (41 mm)\nD = Fissaggio convenzionale coprimaniglia largo (53 mm)\nE = Fissaggio convenzionale mO – interno ed esterno con incavo coprimaniglia stretto (41 mm)\nF = Fissaggio convenzionale mO – interno ed esterno con incavo coprimaniglia largo (53 mm)\nG = Fissaggio convenzionale mO – interno senza incavo/esterno con incavo coprimaniglia stretto (41 mm)   \nH = Fissaggio convenzionale mO – interno senza incavo/esterno con incavo coprimaniglia largo (53 mm)\nI = Fissaggio convenzionale mO – interno con incavo/esterno senza incavo coprimaniglia stretto (41 mm) \nJ = Fissaggio convenzionale mO – interno con incavo/esterno senza incavo coprimaniglia largo (53 mm)\nK = Fissaggio convenzionale mO –interno ed esterno senza incavo coprimaniglia stretto (41 mm)  \nL = Fissaggio convenzionale mO –interno ed esterno senza incavo coprimaniglia largo (53 mm)","A = SnapIn smal (41 mm)\nB = SnapIn breed (53 mm)\nC = Conventionele bevestiging smal (41 mm)\nD = Conventional bevestiging breed (53mm)\nE = Conventionele bevestiging MO – binnen en buiten uitsparing smal (41 mm)\nF = Conventionele bevestiging MO – binnen en buiten uitsparing breed (53 mm)\nG = Conventionele bevestiging MO – binnen blind/buiten uitsparing smal (41 mm)  \nH = Conventionele bevestiging MO – binnen blind/buiten uitsparing breed (53 mm)\nI = Conventionele bevestiging MO – binnen uitsparing/buiten blind smal (41 mm) \nJ = Conventionele bevestiging MO – binnen uitsparing/buiten blind breed (53 mm)\nK = Conventionele bevestiging MO – binnen en buiten blind smal (41 mm)  \nL = Conventionele bevestiging MO – binnen en buiten blind breed (53 mm)","A = SnapIn smal (41mm)\nB = SnapIn bred (53mm)\nC = Konventionel Fastgørelse smal (41mm)\nD = Konventionel Fastgørelse bred (53mm)\nE = Konventionel Fastgørelse MO - indvendig og udvendig cylinder udstandsning - smal (41mm)\nF = Konventionel Fastgørelse MO - indvendig og udvendig cylinder udstandsning - bred (53mm)\nG = Konventionel Fastsgørelse MO - indvendig blændet, udvendig udstandsning - smal (41mm)\nH = Konventionel Fastgørelse MO - indvendig blændet, udvendig udstandsning - bred (53mm)\nI = Konventionel Fastgørelse MO - indvendig udstandsning, udvendig blændet - smal (41mm)\nJ = Konventionel Fastgørelse MO - indvendig udstandsning, udvendig blændet - bred (53mm)\nK = Konventionel Fastgørelse MO - indvendig og udvendig blændet - smal (41mm)\nL = Konventionel Fastgørelse MO - indvendig og udvendig blændet - bred (53mm)"]
["Entfernung","00 = Konventionelle Befestigung (Version: C, D, K, L)\n70 = 70 mm\n72 = 72 mm\n75 = 75 mm\n78 = 78 mm\n85 = 85 mm\n88 = 88 mm\n90 = 90 mm\n92 = 92 mm\n94 = 94 mm (nur für Swiss Round)\n96 = 96 mm (nur für Scandinavian Oval)\n05 = 105 mm (nur für Scandinavian Oval)","00 = Conventional Fastening (Version: C, D, K, L)\n70 = 70 mm\n72 = 72 mm\n75 = 75 mm\n78 = 78 mm\n85 = 85 mm\n88 = 88 mm\n90 = 90 mm\n92 = 92 mm\n94 = 94 mm (only for Swiss Round)\n96 = 96 mm (only for Scandinavian Oval) \n05 = 105 mm (only for Scandinavian Oval)","00 = Fixation conventionnelle  (Variante C, D, K, L)\n70 = 70 mm\n72 = 72 mm\n75 = 75 mm\n78 = 78 mm\n85 = 85 mm\n88 = 88 mm\n90 = 90 mm\n92 = 92 mm\n94 = 94 mm (seulement pour profil suisse)\n96 = 96 mm (seulement pour ovale scandinave)\n05 = 105 mm (seulement pour ovale scandinave)","00 =  fissaggio convenzionale versione C, D, K, L)\n70 = 70 mm\n72 = 72 mm\n75 = 75 mm\n78 = 78 mm\n85 = 85 mm\n88 = 88 mm\n90 = 90 mm\n92 = 92 mm\n94 = 94 mm (solo per tondo svizzero)\n96 = 96 mm (solo per Scandinavian Oval)\n05 = 105 mm (solo per Scandinavian Oval)","00 = conventionele bevestiging (versie C, D, K, L)\n70 = 70 mm\n72 = 72 mm\n75 = 75 mm\n78 = 78 mm\n85 = 85 mm\n88 = 88 mm\n90 = 90 mm\n92 = 92 mm\n94 = 94 mm (alleen voor Swiss round)\n96 = 96 mm (alleen voor Scandinavian Oval)\n05 = 105 mm (alleen voor Scandinavian Oval)","00 = Konventionel Fastgørelse (Version: C, D, K, L)\n70 = 70 mm\n72 = 72 mm\n75 = 75 mm\n78 = 78 mm\n85 = 85 mm\n88 = 88 mm\n90 = 90 mm\n92 = 92 mm\n94 = 94 mm (kun til Schweizisk Rund)\n96 = 96 mm (kun til Skandinavisk Oval) \n05 = 105 mm (kun til Skandinavisk Oval)"]
["Version","0 = gekuppelt (ohne Elektronik)\n1 = einseitig kuppelnd","0 = Engaged (for Smart Handles without electronics only)\n1 = Engaging on one side (for all Smart Handles with electronics)","0 = Enclenchée  (sans électronique)\n1 = Couplage d’un seul côté","0 = Innestata (senza elettronica)\n1 = Innesto su un lato","0 = Permanent geactiveerd (zonder elektronica)\n1 = Enkelzijdig koppelend","0 = Aktiveret (kun til Smart Handles uden elektronik)\n1 = Aktiv på én side (til alle Smart Handles med elektronik)"]
["Drücker außen","A = L-Form rund\nB = L-Form Gehrung\nC = U-Form rund\nD = U-Form Gehrung\nE = U-Form rund gekröpft\nF = U-Form Gehrung gekröpft","A = L-shape curved\nB = L-shape mitre\nC = U-shape curved\nD = U-shape mitre\nE = U-shape curved & cranked\nF = U-shape mitre & cranked","A = forme en L arrondie\nB =  forme en L rectangulaire\nC = forme en U arrondie\nD = forme en U rectangulaire\nE = forme en U arrondie & coudée\nF = forme en U rectangulaire & coudée","A = forma a L curvata tondeggiante\nB = forma a L piegata ad angolo retto\nC = forma a U curvata tondeggiante\nD = forma a U piegata ad angolo retto\nE = forma a U rund gekröpft\nF = forma a U Gehrung gekröpft","A = L-vorm rond gebogen\nB =  L-vorm verstek\nC = U-vorm rond gebogen\nD = U-vorm verstek\nE = U-vorm rond gebogen & verkropt\nF = U-vorm verstek & verkropt","A = L-form rundet\nB = L-form mitre (retvinklet)\nC = U-form rundet\nD = U-form mitre (retvinklet)\nE = U-form rundet & forkrøbbet\nF = U-form mitre (retvinklet) & forkrøbbet"]
["Drücker innen","A = L-Form rund\nB = L-Form Gehrung\nC = U-Form rund\nD = U-Form Gehrung\nE = U-Form rund gekröpft\nF = U-Form Gehrung gekröpft","A = L-shape curved\nB = L-shape mitre\nC = U-shape curved\nD = U-shape mitre\nE = U-shape curved and cranked\nF = U-shape mitre and cranked","A = forme en L arrondie\nB =  forme en L rectangulaire\nC = forme en U arrondie\nD = forme en U rectangulaire\nE = forme en U arrondie & coudée\nF = forme en U rectangulaire & coudée","A = forma a L curvata tondeggiante\nB = forma a L piegata ad angolo retto\nC = forma a U curvata tondeggiante\nD = forma a U piegata ad angolo retto\nE = forma a U con rientro teondeggiante\nF = forma a U con rientro ad angolo retto","A = L-vorm rond gebogen\nB =  L-vorm verstek\nC = U-vorm rond gebogen\nD = U-vorm verstek\nE = U-vorm rond gebogen & verkropt\nF = U-vorm verstek & verkropt","A = L-form rundet\nB = L-form mitre (retvinklet)\nC = U-form rundet\nD = U-form mitre (retvinklet)\nE = U-form rundet & forkrøbbet\nF = U-form mitre (retvinklet) & forkrøbbet"]
["Oberfläche","1 = Edelstahl gebürstet\n3 = Messing","1 = brushed stainless steel\n3 = brass","1 = Inox brossé\n3 = Laiton","1 = acciaio inox spazzolato\n3 = ottone","1 = Geborsteld RVS\n3 = Messing","1 = Børstet rustfri stål\n3 = Messing"]
["Lesetechnik","0 = ohne Elektronik\nA = Mifare","0 = Without electronics\nA = Mifare","0 = Sans électronique\nA = Mifare","0 =  senza elettronica\nA = Mifare","0 = zonder elektronica\nA = Mifare","0 = Uden elektronik\nA = Mifare"]
[]
["Optionen","WP = waterproof","WP = Waterproof (IP 65)","WP =  version étanche","WP = versione resistente alle intemperie","WP = Weerbestendige versie","WP = Vandtæt (IP 65)"]
[]
["Änderung Profilname","Bei Änderung dieser Zelle werden die Eingaben in der Zeile gelöscht.","Changes to this text field result in a resetting of the complete line.","En cas de modifications dans cette cellule, les données de la ligne seront supprimées.","in caso di cambio del testo di questa cella, il contenuto di questa riga viene cancellato","In geval van wijzigingen in dit tekstveld zal de inhoud worden gewist.","Ændringer i dette tekstfelt vil resultere i en nulstilling af hele linjen."]
["Änderung Besfestigung","Bei Änderung dieser Zelle werden die Eingaben zur \"Entfernung\" gelöscht.","Changes to this text field result in a resetting of \"Centre Distance\".","En cas de modifications dans cette cellule, les données concernant la \"distance\" seront supprimées.","In caso di cambio del testo di questa cella, il contenuto della cella \"interasse\" verrà cancellato","In geval van wijzigingen in dit tekstveld zal de \"h.o.h maat\" worden gewist.","Ændringer i dette tekstfelt vil resultere i en nulstilling af \"Centerafstand\"."]
["Änderung Version","Bei Änderung dieser Zelle werden die Eingaben zur \"Lesetechnik\" sowie \"Optionen\" gelöscht.","Changes to this text field result in a resetting of \"Reading Technology\" and \"Options\".","En cas de modifications dans cette cellule, les données concernant la \"technique de lecture\" et \"options\" seront supprimées.","In caso di cambio del testo di questa cella, il contenuto della cella \"tecnologia di lettura\" e \"opzioni\" verrà cancellato","In geval van wijzigingen in dit tekstveld zal de \"leestechniek\"  en \"opties\" worden gewist.","Ændringer i dette tekstfelt vil resultere i en nulstilling af \" Læseteknologi\" og \"Indstillinger\"."]
["Änderung Lesetechnik","Bei Änderung dieser Zelle werden die Eingaben zu \"Optionen\" gelöscht.","In case of change in this text field the content in field \"Options\" will be reset.","En cas de modifications dans cette cellule, les données concernant l'option \"options\" seront supprimées.","In caso di cambio del testo di questa cella, il contenuto della cella \"opzioni\" verrà cancellato","In geval van wijzigingen in dit tekstveld zal \"opties\" worden gewist.","Ændringer i dette tekstfelt vil resultere i en nulstilling af \"Indstillinger\"."]
["Änderung  Türdicke","Bei Änderung dieser Zelle werden die Eingaben zu \"Vierkant\" gelöscht.","In case of change in this text field the content in field \"Spindle Square\" will be reset.","En cas de modifications dans cette cellule, les données concernant l'option \"Carré\" seront supprimées.","In caso di modifica del testo in questo campo, il contenuto del campo “Quadro maniglia” verrà cancellato. ","In geval van wijzigingen in dit tekstveld zal \"Vierkant stift\" worden gewist.","Ændringer i dette tekstfelt vil resultere i en nulstilling af \"Grebspind\"."]
[]
["Programmierung","Programmiergerät SmartIntego\nProgrammiersoftware SmartIntego","Programming device SmartIntego\nProgramming software SmartIntego","Programming device SmartIntego\nProgramming software SmartIntego","Programming device SmartIntego\nProgramming software SmartIntego","Programming device SmartIntego\nProgramming software SmartIntego","Konfigurationsenhed SmartIntego\nKonfigurationssoftware SmartIntego"]
["GatewayNodes","SmartIntego GatewayNode zur Umsetzung von der RS 485 Schnittstelle auf 868 MHz\n\nSmartIntego GatewayNode zur Reichweitenverlängerung der 868 MHz Funkstrecke\n\nSmartIntego GatewayNode zur Umsetzung von Ethernet (TCP/IP) auf 868 MHz","SmartIntego GatewayNode to convert from RS485 port to 868 MHz\n\nSmartIntego GatewayNode to extend range of 868 MHz transmission path\n\nSmartIntego GatewayNode to convert from Ethernet (TCP/IP) to 868 MHz","SmartIntego GatewayNode to convert from RS485 port to 868 MHz\n\nSmartIntego GatewayNode to extend range of 868 MHz transmission path\n\nSmartIntego GatewayNode to convert from Ethernet (TCP/IP) to 868 MHz","SmartIntego GatewayNode to convert from RS485 port to 868 MHz\n\nSmartIntego GatewayNode to extend range of 868 MHz transmission path\n\nSmartIntego GatewayNode to convert from Ethernet (TCP/IP) to 868 MHz","SmartIntego GatewayNode to convert from RS485 port to 868 MHz\n\nSmartIntego GatewayNode to extend range of 868 MHz transmission path\n\nSmartIntego GatewayNode to convert from Ethernet (TCP/IP) to 868 MHz","SmartIntego GatewayNode til konvertering fra RS485 port til 868 MHz\n\nSmartIntego GatewayNode til at udvide rækkevidden af 868 MHz radioforbindelse\n\nSmartIntego GatewayNode til konvertering fra Ethernet (TCP/IP) til 868 MHz"]

{"sheet":"CommentsZyl","index":3,"n_rows":11,"n_cols":7,"rows_kept":11,"cut":false,"hidden":true,"merged":[]}
["Sprache","Deutsch","English","Français","Italiano","Nederlands","Dansk"]
["Profil","Europrofil\nSwiss Round\nScandinavian Oval\nScandinavian Round","Europrofile\nSwiss Round\nScandinavian Oval\nScandinavian Round","Profil européen\nProfil suisse\nOvale scandinave\nRond scandinave","profilo europeo\ntondo svizzero\nScandinavian Oval\nScandinavian Round","Euro profiel\nSwiss Round\nScandinavian Oval\nScandinavian Round","Europrofil\nSchweizisk Rund\nSkandinavisk Oval\nSkandinavisk Rund"]
["Variante","MI.CO - Comfort\nMI.FD - Freidrehend\nMI.AP2.FD - Antipanik freidrehend\nMI.AP2.BL - Antipanik beidseitig lesend\nMI.HZ - Halbzylinder\nA40.MI - Außenseite Scandinavian Oval/Round Zylinder\nI30 - Innenseite Scandinavian Oval/Round Zylinder","MI.CO - Comfort\nMI.FD - freely rotating\nMI.AP2.FD - Antipanic freely rotating\nMI.AP2.BL - Antipanik reading on both sides\nMI.HZ - half cylinder\nA40.MI - outside version of Scandinavian Oval/Round Zylinder\nI30 - inside version of Scandinavian Oval/Round Zylinder","MI.CO - Comfort\nMI.FD - Rotation libre des deux côtés\nMI.AP2.FD - Anti-panique rotation libre des deux côtés\nMI.AP2.BL - Anti-panique (reading on both sides)\nMI.HZ - Demi-cylindre\nA40.MI - outside version of Ovale scandinave/Rond cylindre\nI30 - inside version of Ovale scandinave/Rond cylindre","MI.CO - Comfort\nMI.FD - Freidrehend\nMI.AP2.FD - Antipanik freidrehend\nMI.AP2.BL - Antipanik beidseitig lesend\nMI.HZ - Halbzylinder\nA40.MI - Außenseite Scandinavian Oval/Round Zylinder\nI30 - Innenseite Scandinavian Oval/Round Zylinder","MI.CO - Comfort\nMI.FD - Freidrehend\nMI.AP2.FD - Antipanik freidrehend\nMI.AP2.BL - Antipanik beidseitig lesend\nMI.HZ - Halbzylinder\nA40.MI - Außenseite Scandinavian Oval/Round Zylinder\nI30 - Innenseite Scandinavian Oval/Round Zylinder","MI.CO - Komfort\nMI.FD - frit roterende\nMI.AP2.FD - Antipanik frit roterende\nMI.AP2.BL - Antipanik læser på begge sider\nMI.HZ - halvcylinder\nA40.MI - udendørs version af Skandinavisk Oval/Rund cylinder\nI30 - indendørs version af Skandinavisk Oval/Rund cylinder"]
["Optionen",".DK = demontierbarer Knauf\n.MR = Multirast\n.MS = Messing\n.WP = Wetterfest",".DK = detachable knob\n.MR = Multi-point\n.MS = Brass\n.WP = Weatherproof",".DK = bouton démontable\n.MR = multi-enclenchements\n.MS = Laiton\n.WP = étanche",".DK = pomolo smontabile\n.MR = Multirast\n.MS = Ottone\n.WP = resistente alle intemperie",".DK = demonteerbare knop\n.MR = multirust-uitvoering\n.MS = Messing\n.WP = Weerbestendig",".DK = aftagelig knop\n.MR = Multi-point\n.MS = Messing\n.WP = Vejrbestandig (udendørs)"]
["Außenlänge","minimale Außenlänge 30 mm \n(.MR = 35 mm)","minimum outside length 30 mm\n(MR = 35 mm)","minimum outside length 30 mm\n(MR = 35 mm)","minimum outside length 30 mm\n(MR = 35 mm)","minimum outside length 30 mm\n(MR = 35 mm)","mindste udvendig længde 30 mm\n(.MR = 35 mm)"]
["Innenlänge","minimale Innenlänge 30 mm \n(.WP = 35 mm)","minimum inside length 30 mm\n(WP = 35 mm)","minimum inside length 30 mm\n(WP = 35 mm)","minimum inside length 30 mm\n(WP = 35 mm)","minimum inside length 30 mm\n(WP = 35 mm)","mindste indvendig længde 30 mm\n(.WP = 35 mm)"]
[]
["Änderung Profil","Bei Änderung dieser Zelle werden die Eingaben in der Zeile gelöscht.","Changes to this text field result in a resetting of the complete line.","En cas de modifications dans cette cellule, les données de la ligne seront supprimées.","in caso di cambio del testo di questa cella, il contenuto di questa riga viene cancellato","In geval van wijzigingen in dit tekstveld zal de inhoud worden gewist.","Ændringer i dette tekstfelt vil resultere i en nulstilling af hele linjen."]
["Änderung Variante","Bei Änderung dieser Zelle werden die Eingaben zur \"Optionen\", \"Außenlänge\" sowie \"Innenlänge\" gelöscht.","In case of change in this text field the content in field \"options\",  \"outside length\" and \"inside length\" will be reset.","En cas de modifications dans cette cellule, les données concernant la \"options\", \"Außenlänge\" et \"Innenlänge\" seront supprimées.","In caso di cambio del testo di questa cella, il contenuto della cella \"opzioni\", \"Außenlänge\" e \"Innenlänge\" verrà cancellato","In geval van wijzigingen in dit tekstveld zal de \"opties\", \"Außenlänge\" en \"Innenlänge\" worden gewist.","Ændringer i dette tekstfelt vil resultere i en nulstilling af \"Indstillinger\", \"udvendig længde\" og \"Indvendig længde\"."]
["Änderung Optionen","Bei Änderung dieser Zelle werden die Eingaben zu \"Außenlänge\" sowie \"Innenlänge\" gelöscht.","In case of change in this text field the content in field \"outside length\" and \"inside length\" will be reset.","En cas de modifications dans cette cellule, les données concernant l'option \"G1/G2\" et \"options\" seront supprimées.","In caso di cambio del testo di questa cella, il contenuto della cella \"Außenlänge\" e \"Innenlänge\" verrà cancellato","In geval van wijzigingen in dit tekstveld zal \"Außenlänge\" en \"Innenlänge\" worden gewist.","Ændringer i dette tekstfelt vil resultere i en nulstilling af \"udvendig længde\" og \"Indvendig længde\"."]
["Änderung "]

{"sheet":"Bilder","index":4,"n_rows":16,"n_cols":14,"rows_kept":16,"cut":false,"hidden":true,"merged":[]}
["Bemaßung","Deutsch","English","Français","Italiano","Nederlands"]
[]
[]
[]
[]
["Drücker","A.","B.","C.","D.","E.","F."]
[]
[]
[]
[]
[]
[]
[]
["Drücker","A.","B.","C.","D.","E.","F."]
[null," "]
[null,null,null,null,null,null,null,"Bemaßung","Deutsch","English","Français","Italiano","Nederlands","Dansk"]

{"sheet":"Bilder_SI_Zylinder","index":5,"n_rows":1,"n_cols":5,"rows_kept":1,"cut":false,"hidden":true,"merged":[]}
["Zylinder","Europrofil","Swiss_Round","Scandinavian_Oval","Scandinavian_Round"]